{"text_format":"1","workbook":"xlsx","n_sheets":11,"sheets":["Introductie","Vragenlijst","Adviesrichting","Investeringstabel","tussenstap advies","stringopbouw advies","adviesopties","Sheet1","koudemiddelen","dropdowns","dynamische dropdowns"],"not_rendered":{"charts":0,"images":6,"macros":1,"external_links":0,"defined_names":16,"comments":6,"pivot_tables":0},"unopened":[],"bounds":{"document_bytes":16777216,"sheet_cells":100000,"rows_first":2000,"rows_last":500,"rows_between":2000,"halvings":0,"cell_chars":16384,"cell_head_chars":4096},"cells_cut":0,"cells_raw":0,"read":"whole","date_system":"1900"}

{"sheet":"Introductie","index":0,"n_rows":21,"n_cols":5,"rows_kept":21,"cut":false,"hidden":false,"merged":[[1,3,15,3],[1,4,20,4]]}
[]
[null,"Introductie",null,"Disclaimer:                                                                                                                                                                                                                                                                                            In deze cel kan specifieke informatie worden opgenomen, die nadere toelichting verstrekt over bijzondere consequenties, voorwaarden, aandachtspunten van de voorgestelde aanpassingen. Vaste punten zullen zijn:","-  Verandering van wetgeving in de toekomst\n-\tAltijd het resultaat verder bekijken met de specifieke behoefte van het bedrijf. Een bepaald algoritme werd gebruikt. Het is de bedoeling om het model te laten werken, maar vanuit de gekozen expertise. Er zit dus een flexibel laag omheen waar de gebruiker rekening mee moet houden.\n-\tZorg in alle gevallen dat de juiste veiligheidsvoorzieningen worden getroffen.\n-\tInvesteringstabel is gemaakt met de kennis ten tijde van het ontwikkelen van het model.\n-\tEr is gekozen om geen gebruik te maken van gerecycled koelmiddel, omdat verwacht wordt dat de beschikbaarheid hiervan zal afnemen en de prijs zal stijgen."]
[]
[null,"Een tool voor de koudemiddel transitie"]
[]
[null,"Doel"]
[null,"Het bouwen van een beslisboom voor de koudemiddel transitie naar duurzame (verse) groenten en fruit bewaring waarmee de gebruiker zijn mogelijke keuzes om aan de regelgeving te voldoen, inzichtelijk kan krijgen op zowel technische als economische parameters."]
[]
[null,"Achtergrond"]
[null,"In verband met de richtlijn 2019/1937 en tot intrekking van verordening 517/2024, worden de verkoop en gebruik van koudemiddelen beperkt. Deze beslisboom is er om de groenten en fruit bewaarsector te steunen in het keuzes maken van de koudemiddelen die zou zo veel mogelijk passen bij hun bedrijf. "]
[]
[null,"Om aan een adviesrichting te komen:"]
[null,"-Ga naar “vragenlijst”"]
[null,"-Vul alle vragen met een drop-down menu"]
[null,{"$f":"\"-Vul het best passende antwoord in\"","v":"-Vul het best passende antwoord in"}]
[null,"Om het adviesrichting te zien:"]
[null,"-Ga naar “Adviesrichting”"]
[null,"-We uitnodingen u uit om het adviesrichting verder te bespreken"]
[]
[null,"Dit project ontvangt financiële steun vanuit de kennis- en innovatieagenda landbouw, water, voedsel. Binnen de KIA werken bedrijfsleven, kennisinstellingen en overheid samen aan innovaties voor veilig en gezond voedsel (en een groene leefomgeving) voor 9 miljard mensen in een veerkrachtige wereld."]
[null,"Project partners"]

{"sheet":"Vragenlijst","index":1,"n_rows":27,"n_cols":12,"rows_kept":27,"cut":false,"hidden":false,"merged":[[18,6,18,9]]}
[]
[null,null,null,null,null,null,null,null,null,null,"goed =3"]
[null,null,"Advies transitie koudemiddel","KLIK OP DE GROENE CEL EN DAARNA OP HET PIJLTJE DAT ERNAAST VERSCHIJNT VOOR EEN KEUZEMENU"]
[]
[null,1,"Wat is de leeftijd van uw koelsysteem?",null,null,null,null,null,null,null,{"$f":"IF(AND(D5=\"\",IF(ISNUMBER(SEARCH(\"nvt\",C5)),0,1)=1),2,3)","v":2},{"$f":"IF(AND(NOT(D5=\"\"),IF(ISNUMBER(SEARCH(\"nvt\",C5)),0,1)=0),2,3)","v":3}]
[]
[null,2,{"$f":"IF(D5=\"tenminste 25 jaar\",\"Welke koudemiddel heeft u in uw koelsysteem?(vraag NVT)\",\"Welke koudemiddel heeft u in uw koelsysteem?\")","v":"Welke koudemiddel heeft u in uw koelsysteem?"},null,null,null,{"$f":"IF(D7=\"\",\"\",\"GWP=\")","v":""},{"$f":"IF(D7=\"\",\"\",VLOOKUP(Vragenlijst!D7,dropdowns!G4:H19,2,FALSE))","v":""},null,null,{"$f":"IF(AND(D7=\"\",IF(ISNUMBER(SEARCH(\"nvt\",C7)),0,1)=1),2,3)","v":2},{"$f":"IF(AND(NOT(D7=\"\"),IF(ISNUMBER(SEARCH(\"nvt\",C7)),0,1)=0),2,3)","v":3}]
[]
[null,3,{"$f":"IF(D5=\"tenminste 25 jaar\",\"Is het koudemiddel in uw installatie het originele koudemiddel?(vraag NVT)\",\"Is het koudemiddel in uw installatie het originele koudemiddel?\")","v":"Is het koudemiddel in uw installatie het originele koudemiddel?"},null,null,null,null,null,null,null,2,3]
[]
[null,4,"Wat is de functie van uw koelsysteem",null,null,null,null,null,null,null,2,3]
[]
[null,5,"Wat is uw huidige type koelsysteem?",null,null,null,{"$f":"IF(LEFT(D13,3)=\"DXe\",\"LET OP: nieuw systeem kan geen DPS of IDPS zijn\",\"\")","v":""},null,null,null,2,3]
[]
[null,6,"Is er een extra elektrische aansluiting mogelijk?",null,null,null,{"$f":"IF(D15=\"nee\",\"LET OP: dan blijft koelvermogen gelijk\",\"\")","v":""},null,null,null,2,3]
[]
[null,7,{"$f":"IF(D15=\"nee\",\"Wat is het gewenst koelvermogen en systeem? (NVT)\",\"Wat is het gewenst koelvermogen en systeem?\")","v":"Wat is het gewenst koelvermogen en systeem?"},null,null,null,{"$f":"IF(D17=\"\",\"\",IF('stringopbouw advies'!Q15=1,IF(ISNUMBER(SEARCH(\"DPS\",$D$17)),\"je kunt niet van DXe naar DPS of IDPS\",\"\"),IF('stringopbouw advies'!Q15=2,IF('stringopbouw advies'!Q17=2,\"kan niet: dit is geen verhoging van koelvermogen\",\"\"),IF(OR('stringopbouw advies'!Q15=3,'stringopbouw advies'!Q15=5),IF(OR('stringopbouw advies'!Q17=2,'stringopbouw advies'!Q17=3,'stringopbouw advies'!Q17=4),\"kan niet: dit is geen verhoging van koelvermogen\",\"\"),IF(OR('stringopbouw advies'!Q15=4,'stringopbouw advies'!Q15=6),IF(OR('stringopbouw advies'!Q17=2,'stringopbouw advies'!Q17=3,'stringopbouw advies'!Q17=4,'stringopbouw advies'!Q17=5,'stringopbouw advies'!Q17=6),\"kan niet: dit is geen verhoging van koelvermogen\",\"\"))))))","v":""},null,null,null,2,3]
[null,null,null,null,null,null,{"$f":"IF(G17=\"\",\"\",\"KIES OPNIEUW\")","v":""}]
[null,8,{"$f":"IF(D5=\"tenminste 25 jaar\",\"Wilt u een natuurlijk koudemiddel, zoals NH3, CO2 of propaan?(vraag NVT)\",\"Wilt u een natuurlijk koudemiddel, zoals NH3, CO2 of propaan?\")","v":"Wilt u een natuurlijk koudemiddel, zoals NH3, CO2 of propaan?"},null,null,null,{"$f":"IF(OR(D19=\"nee, liever een alternatief F-gas\",D19=\"nee, houdt liefst hetzelfde F-gas\"),IF(OR(D17=\"\",D17=\"gelijk koelvermogen\"),\"\",\"kan niet met verhoging koelvermogen; alleen als van DXc naar IDPS met F-gas met GWP<150, dan wel.\"),\"\")","v":""},null,null,null,2,3]
[]
[null,9,{"$f":"IF('stringopbouw advies'!Q18=2,IF('stringopbouw advies'!Q17<2,IF('stringopbouw advies'!Q11<>1,\"Deze vraag is NVT. Ga verder met de volgende vraag.\",\"Wat is uw investeringsbudget?\"),\"Wat is uw investeringsbudget?\"),\"Wat is uw investeringsbudget?\")","v":"Wat is uw investeringsbudget?"},null,null,null,null,null,null,null,2,3]
[]
[null,10,{"$f":"IF('stringopbouw advies'!Q19=2,IF(AND('stringopbouw advies'!R19=0,'stringopbouw advies'!S19=2),\"Deze vraag is NVT. Dit is het einde van de vragenlijst.\",\"In welk seizoen wordt het koelsysteem het meest gebruikt?\"),\"In welk seizoen wordt het koelsysteem het meest gebruikt?\")","v":"In welk seizoen wordt het koelsysteem het meest gebruikt?"},null,null,null,null,null,null,null,2,3]
[]
[]
[]
[null,null,null,null,null,null,null,null,null,null,{"$f":"IF(COUNTIF(K5:L23,2)>0,0,1)","v":0},"Callout: Down Arrow 2"]

{"sheet":"Adviesrichting","index":2,"n_rows":32,"n_cols":12,"rows_kept":32,"cut":false,"hidden":false,"merged":[[0,0,0,1],[17,0,17,1],[17,5,17,8],[17,9,17,11],[16,5,16,11],[2,1,2,2]]}
["Adivesrichting"]
[null,"Advies voor verandering van koudemiddel voor uw installatie "]
[null,"Onderstaand vindt u een samenvatting van het advies, in relatie tot uw bestaande installatie. Elke installatie dient een eigen adviestraject te doorlopen",null,null,"Voor meer informatie over F-gassen, kijk naar het document van Bitzer"]
[null,"Omschrijving","antwoorden op de vragen",null,"zie:","over koudemiddellen: A-500-D - Refrigerants"]
[null,"1.      Leeftijd koeling systeem",{"$f":"IF(ISBLANK(Vragenlijst!D5),\"\",Vragenlijst!D5)","v":""}]
[null,"2.      Koudemiddel in gebruikt",{"$f":"IF(ISBLANK(Vragenlijst!D7),\"\",Vragenlijst!D7)","v":""},null,"Voor meer informatie over natuurlijke koudemiddelen"]
[null,"3.      Originele koudemiddel",{"$f":"IF(ISBLANK(Vragenlijst!D9),\"\",Vragenlijst!D9)","v":""},null,"zie:","Natuurlijke koudemiddelen in de koeltechniek - NVKL"]
[null,"4.      Functies koelcel",{"$f":"IF(ISBLANK(Vragenlijst!D11),\"\",Vragenlijst!D11)","v":""}]
[null,"5.      Huidige koelsysteem ",{"$f":"IF(ISBLANK(Vragenlijst!D13),\"\",Vragenlijst!D13)","v":""}]
[null,"6.      Extra elektrisch aansluiting mogelijk",{"$f":"IF(ISBLANK(Vragenlijst!D15),\"\",Vragenlijst!D15)","v":""}]
[null,"7.      Koelvermogen  in de toekomst  (kW)  ",{"$f":"IF(ISBLANK(Vragenlijst!D17),\"\",Vragenlijst!D17)","v":""}]
[null,"8.      Wilt u een natuurlijk koudemiddel, zoals NH3, CO2 of propaan?",{"$f":"IF(ISBLANK(Vragenlijst!D19),\"\",Vragenlijst!D19)","v":""}]
[null,"9.      Investeringsbudget t.o.v de initiële investering",{"$f":"IF(ISBLANK(Vragenlijst!D21),\"\",Vragenlijst!D21)","v":""}]
[null,"10.    Seizoen meest in gebruik",{"$f":"IF(ISBLANK(Vragenlijst!D23),\"\",Vragenlijst!D23)","v":""}]
[]
[{"$f":"0&\"-\"&A20&\"-\"&A21&\"-\"&A22&\"-\"&A23&\"-\"&A24&\"-\"&A25&\"-\"&A26&\"-\"&A27&\"-\"&A28&\"-\"&A29","v":"0-1-2-3a-3b-4a1-4a2-4b1-4b2-4c1-4c2"}]
[null,null,null,null,null,"opties nieuw gas"]
[null,null,null,null,"NU","F-gas",null,null,null,"natuurlijk gas"]
["Adviescode","kies uit de volgende aanpassings-adviezen","huidig systeem","nieuw systeem","F-gas nu","altern.1","altern.2","altern.3","altern.4","propaan","CO2","NH3"]
[{"$f":"_xlfn._xlws.FILTER(Table1[],ISNUMBER(SEARCH(\"advies\",Table1[Voor schatting investering, onderhoud, en energiekosten: zie tabel hier onder (tabel 2)])),\"geen advies nodig/mogelijk\")","v":1},"Advies: Behoud van huidige systeem met gedeeltelijke ombouw & wisseling naar alternatief F-gas, gerecycled koudemiddel mogelijk tot 2030",0,"","niet relevant","","","","","","",""]
[2,"Advies: Gedeeltelijke ombouw. Tot 2030, alleen met gerecycled koudemiddel. Gedeeltelijke ombouw naar indirect koudedrager pompsysteem met F-gas <150, let op voor PFAS reglementen",0,"","niet relevant","","","","","","",""]
["3a","Advies: Gedeeltelijke ombouw met natuurlijk koudemiddelen: met CO2",0,"","niet relevant","","","","",1,1,1]
["3b","Advies: Gedeeltelijke ombouw met natuurlijk koudemiddelen: zonder CO2",0,"","niet relevant","","","","",1,"",1]
["4a1","Advies: Volledige vervanging naar natuurlijke middelen: DXe; met CO2",0,false,"niet relevant","","","","",1,1,1]
["4a2","Advies: Volledige vervanging naar natuurlijke middelen: DXe; zonder CO2",0,false,"niet relevant","","","","",1,"",1]
["4b1","Advies: Volledige vervanging naar natuurlijke middelen:DXc: met CO2",0,false,"niet relevant","","","","",1,1,1]
["4b2","Advies: Volledige vervanging naar natuurlijke middelen:DXc: zonder CO2",0,false,"niet relevant","","","","",1,"",1]
["4c1","Advies: Volledige vervanging naar natuurlijke middelen: DPS: met CO2",0,"","niet relevant","","","","","",1,1]
["4c2","Advies: Volledige vervanging naar natuurlijke middelen: DPS: zonder CO2",0,"","niet relevant","","","","","","",1]
["4d1","Advies: Volledige vervanging naar natuurlijke middelen: IDPS: met CO2",0,false,"niet relevant","","","","",1,1,1]
["4d2","Advies: Volledige vervanging naar natuurlijke middelen: IDPS: zonder CO2",0,false,"niet relevant","","","","",1,"",1]
[5,"Advies: Behoud van huidige systeem, na 2030 gebruik maken van gerecycled koudemiddel, let op de opkomende PFAS wetgeving.",0,"zelfde systeem","niet relevant","","","","","","",""]

{"sheet":"Investeringstabel","index":3,"n_rows":39,"n_cols":18,"rows_kept":39,"cut":false,"hidden":false,"merged":[[36,1,36,8],[37,1,37,8],[38,1,38,8],[23,1,23,8],[0,0,0,1],[24,1,24,8],[25,1,25,8],[26,1,26,8],[27,1,27,8],[28,1,28,8],[29,1,29,8],[30,1,30,8],[31,1,31,8],[32,1,32,8],[33,1,33,8],[34,1,34,8],[35,1,35,8],[3,17,4,17],[5,17,6,17],[7,17,8,17],[9,17,10,17],[11,17,12,17],[17,9,19,9],[17,10,19,10],[22,0,22,8],[17,5,19,5],[17,6,19,6],[17,7,19,7],[17,8,19,8],[14,4,16,4],[14,5,16,5],[14,6,16,6],[14,7,16,7],[14,8,16,8],[5,13,7,13],[5,14,7,14],[5,15,7,15],[5,9,7,9],[5,10,7,10],[5,11,7,11],[5,12,7,12],[11,8,13,8],[11,4,13,4],[11,5,13,5],[11,6,13,6],[11,7,13,7],[5,5,7,5],[2,0,3,1],[2,7,2,15],[3,4,4,4],[3,5,4,5],[3,6,4,6],[3,7,3,8],[3,9,3,10],[3,11,3,12],[3,13,3,15],[2,5,2,6]]}
["Relatief investeringstabel"]
[]
["Uitgangspunt",null,null,null,"Behoud huidig systeem (%)","Gedeeltelijke ombouw (%)",null,"4. volledige vervanging (%)"]
[null,null,null,null,"1. ombouw en wissel naar alternatief F-gas","2. beperken inhoud F-gas => indirect (koude drager) pompsysteem","3. (en) wisselen naar natuurlijk (zo mogelijk)","direct expansie",null,"direct pomp",null,"indirect pomp / CO2 secundair",null,"indirect pomp / koudedrager ",null,null,null,"De informatie, die past bij uw antwoorden, is in de investeringstabel roze gemarkeerd."]
["Systeem koelcapaciteit","Referentie koelsysteem met synthetisch koudemiddel",null,"Aandeel (%) in exploitatie kosten",null,null,null,"propaan","CO2","CO2","NH3","propaan","NH3","propaan","CO2","NH3"]
["< 25 kWatt","direct expansie (enkelvoudig)","investering",0.6,30,"n.v.t.",30,110,135,"n.v.t.","n.v.t.","n.v.t.","n.v.t.","n.v.t.","n.v.t.","n.v.t."]
["(~  tot 100 ton product)",null,"energie",0.25,105,null,100,100,106]
[null,null,"onderhoud",0.15,110,null,108,108,125]
["25-150 kWatt","direct expansie (centraal)","investering",0.63,30,70,30,110,132,155,185,145,165,140,145,155]
["(~  100 tot 1500 ton product)",null,"energie",0.25,105,120,100,100,108,110,100,107,103,110,116,108]
[null,null,"onderhoud",0.12,110,105,108,108,110,110,108,109,108,120,123,122]
["150-500 kWatt","direct pomp systeem","investering",0.63,"n.v.t.","n.v.t.","n.v.t.","n.v.t.","n.v.t.",145,160,140,155,140,145,155]
["(~  1500 tot 4000 ton product)",null,"energie",0.27,null,null,null,null,null,116,100,107,103,110,116,108]
[null,null,"onderhoud",0.1,null,null,null,null,null,123,108,109,108,120,123,122]
["> 500 kWatt","direct pomp systeem","investering",0.63,"n.v.t.","n.v.t.","n.v.t.","n.v.t.","n.v.t.",145,155,135,150,140,145,155]
["(~ > 4000 ton product)",null,"energie",0.27,null,null,null,null,null,116,100,107,103,110,116,108]
[null,null,"onderhoud",0.1,null,null,null,null,null,123,108,109,108,120,123,122]
["> 150 kWatt","indirect pomp systeem","investering",0.63,30,"n.v.t.","n.v.t.","n.v.t.","n.v.t.","n.v.t.","n.v.t.",140,155,140,145,155]
["(~ > 4000 ton product)",null,"energie",0.27,105,null,null,null,null,null,null,107,103,110,116,108]
[null,null,"onderhoud",0.1,110,null,null,null,null,null,null,109,108,120,123,122]
[]
[]
["Toelichting investeringstabel"]
["De betekenis van de getallen in de tabel.","Afhankelijk van de gekozen antwoorden verschijnen roze cellen. Dit geeft de relatieve kosten van investering, energie en onderhoud weer in vergelijking met het referentiekoelsysteem in kolom B. Als iemand bijvoorbeeld een directpompsysteem heeft (rijen 15-17) en het advies is om het koelsysteem volledig te vervangen door een directpompsysteem met natuurlijk koelmiddel (NH3) (kolom K), dan bedraagt ​​de investering 155% van de oorspronkelijke investering, oftewel ongeveer 63% van de totale kosten. Dit betekent dat als een systeem 500.000 euro kostte, een volledige renovatie waarschijnlijk ongeveer 775.000 euro zal kosten. In hetzelfde voorbeeld wordt het energieverbruik (rij 16) gelijk geschat (de kosten blijven gelijk zolang de energieprijs gelijk blijft), terwijl de onderhoudskosten (rij 17), die 10% van de totale kosten uitmaken, met 8% stijgen (oftewel 108% van de huidige kosten). Op deze manier kan men beter een optie kiezen die aansluit bij de eigen prioriteiten."]
["Algemeen","Een direct expansie installatie is voor de investering-, energie- en onderhoudskosten op 100 gesteld"]
[null,"Het aandeel van kostenpost (investerings-, energie onderhoudskosten) is op basis van exploitatie toetsen; de investeringskosten gelden voor gemiddeld 15 jaar, de energie- en onderhoudskosten gelden voor de levensduur van de installatie."]
[null,"vb.  dus rekening houden met eindresultaat bij 12 % verschil in energie- en onderhoudskosten (over 35 jaar) versus een meerinvestering van 20 % over 15 jaar."]
["Investering","Investeringskosten kennen een grote variatie door uitvoering, commerciële aanbiedingen (soms > 50 %) en zullen door o.a. schaalgrootte van projecten lastig in te schatten zijn. Genoemd zijn % verschillen vanuit een breed vergelijk van afgelopen jaren en logische redenatie"]
["Energieverbruik","Energie voor compressie, condensorventilatoren, verdamperventilatoren, pompen, ontdooiing volgens vergelijkbare eindcondities (te koelen ruimte)"]
[null,"Ruimte temperatuur"]
[null,"Gemiddelde To"]
[null,"Gemiddelde Tc operationele periode (agro)"]
[null,"Specifiek bij CO2 wordt uitgegaan van 95 % operationele tijd sub-kritisch en 5 % transkritisch"]
["Onderhoudskosten","Verplichte onderhoudskosten (m.b.t. detectie, verplichte keuringen en bijbehorende updates)"]
[null,"Revisie (preventief onderhoud)"]
[null,"Oliemanagement"]
[null,"Vroegtijdige vervanging onderdelen"]
[null,"Koudemiddelverlies"]
[null,"Uitgangspunt is een synthetisch dx systeem zonder verlies van F-gassen"]

{"sheet":"tussenstap advies","index":4,"n_rows":77,"n_cols":26,"rows_kept":77,"cut":false,"hidden":true,"merged":[[45,14,47,14],[45,15,47,15],[45,16,47,16],[51,5,53,5],[51,6,53,6],[51,7,53,7],[51,8,53,8],[57,10,59,10],[45,13,47,13],[45,10,47,10],[45,11,47,11],[45,12,47,12],[54,6,56,6],[54,7,56,7],[54,8,56,8],[16,0,16,1],[57,6,59,6],[57,7,59,7],[57,8,59,8],[64,2,64,9],[65,2,65,9],[1,0,1,1],[2,0,2,1],[16,9,16,11],[16,5,16,8],[42,0,43,1],[42,8,42,16],[43,8,43,9],[43,10,43,11],[43,12,43,13],[43,14,43,16],[15,5,15,11],[45,4,59,4],[45,6,47,6],[54,5,56,5],[74,2,74,9],[75,2,75,9],[76,2,76,9],[43,5,44,5],[43,6,44,6],[43,7,44,7],[70,2,70,9],[71,2,71,9],[72,2,72,9],[73,2,73,9],[66,2,66,9],[67,2,67,9],[68,2,68,9],[69,2,69,9],[62,2,62,9],[63,2,63,9]]}
[]
["Advies voor verandering van koudemiddel voor uw installatie "]
["Onderstaand vindt u een samenvatting van het advies, in relatie tot uw bestaande installatie. Elke installatie dient een eigen adviestraject te doorlopen"]
["Omschrijving","Bestaande installatie (antwoorden op de vragen)"]
["1.      Leeftijd koeling systeem",{"$f":"IF(ISBLANK(Vragenlijst!D5),\"\",Vragenlijst!D5)","v":""}]
["2.      Koudemiddel in gebruikt",{"$f":"IF(ISBLANK(Vragenlijst!D7),\"\",Vragenlijst!D7)","v":""}]
["3.      Originele koudemiddel",{"$f":"IF(ISBLANK(Vragenlijst!D9),\"\",Vragenlijst!D9)","v":""}]
["4.      Functies koelcel",{"$f":"IF(ISBLANK(Vragenlijst!D11),\"\",Vragenlijst!D11)","v":""}]
["5.      Huidige koelsysteem ",{"$f":"IF(ISBLANK(Vragenlijst!D13),\"\",Vragenlijst!D13)","v":""}]
["6.      Extra elektrisch aansluiting mogelijk",{"$f":"IF(ISBLANK(Vragenlijst!D15),\"\",Vragenlijst!D15)","v":""}]
["7.      Koelvermogen  in de toekomst  (kW)  ",{"$f":"IF(ISBLANK(Vragenlijst!D17),\"\",Vragenlijst!D17)","v":""}]
["8.      Van F-gas af",{"$f":"IF(ISBLANK(Vragenlijst!D19),\"\",Vragenlijst!D19)","v":""}]
["9.      Investeringsbudget t.o.v de initiële investering",{"$f":"IF(ISBLANK(Vragenlijst!D21),\"\",Vragenlijst!D21)","v":""}]
["10.    Seizoen meest in gebruikt",{"$f":"IF(ISBLANK(Vragenlijst!D23),\"\",Vragenlijst!D23)","v":""},null,null,"Q15=",{"$f":"'stringopbouw advies'!Q15","v":0},"Q17=",{"$f":"'stringopbouw advies'!Q17","v":0},{"$f":"IF('stringopbouw advies'!$Q$15=3,\"DPS 150-500 kW\",1)","v":1}]
[]
[null,null,null,null,null,"opties nieuw gas"]
["Aanpassings-advies",null,null,null,"NU","F-gas",null,null,null,"natuurlijk gas"]
["Adviezen","Voor schatting investering, onderhoud, en energiekosten: zie tabel hier onder (tabel 2)","huidig systeem","nieuw systeem","F-gas nu","altern.1","altern.2","altern.3","altern.4","propaan","CO2","NH3"]
[1,{"$f":"IF('stringopbouw advies'!B22=0,adviesopties!B4,\"\")","v":"Advies: Behoud van huidige systeem met gedeeltelijke ombouw & wisseling naar alternatief F-gas, gerecycled koudemiddel mogelijk tot 2030"},{"$f":"IF(B19=\"\",\"\",Vragenlijst!$D$13)","v":0},{"$f":"IF(B19=\"\",\"\",IF('stringopbouw advies'!$Q$17=1,IF('stringopbouw advies'!$Q$15=1,\"Dxe\",IF('stringopbouw advies'!$Q$15=2,\"DXc 25-150 kW\",IF('stringopbouw advies'!$Q$15=3,\"DPS 150-500 kW of IDPS 150-500 kW\",IF('stringopbouw advies'!$Q$15=4,\"DPS >500 kW of IDPS >500 kW\",IF('stringopbouw advies'!$Q$15=5,\"IDPS 150-500 kW\",IF('stringopbouw advies'!$Q$15=6,\"IDPS >500 kW\",\"\")))))),IF('stringopbouw advies'!$Q$17=2,\"DXc 25-150 kW\",IF('stringopbouw advies'!$Q$17=3,\"DPS 150-500 kW\",IF('stringopbouw advies'!$Q$17=4,\"IDPS 150-500 kW\",IF('stringopbouw advies'!$Q$17=5,\"DPS >500 kW\",IF('stringopbouw advies'!$Q$17=6,\"IDPS >500 kW\",IF('stringopbouw advies'!$Q$17=7,\"DPS nog meer >500 kW\",IF('stringopbouw advies'!$Q$17=8,\"IDPS nog meer >500 kW\",\"\")))))))))","v":""},{"$f":"IF($B19=\"\",\"\",IF(Vragenlijst!$D$7=\"\",\"niet relevant\",Vragenlijst!$D$7))","v":"niet relevant"},{"$f":"IF(E19=\"\",\"\",IF($B$12=\"nee, bij voorkeur een alternatief F-gas\",IF(VLOOKUP(E19,koudemiddelen!$A$4:$J$12,3,FALSE)=\"\",\"\",VLOOKUP(E19,koudemiddelen!$A$4:$J$12,3,FALSE)),\"\"))","v":""},{"$f":"IF(E19=\"\",\"\",IF($B$12=\"nee, bij voorkeur een alternatief F-gas\",IF(VLOOKUP(E19,koudemiddelen!$A$4:$J$12,5,FALSE)=\"\",\"\",VLOOKUP(E19,koudemiddelen!$A$4:$J$12,5,FALSE)),\"\"))","v":""},{"$f":"IF(E19=\"\",\"\",IF($B$12=\"nee, bij voorkeur een alternatief F-gas\",IF(VLOOKUP(E19,koudemiddelen!$A$4:$J$12,7,FALSE)=\"\",\"\",VLOOKUP(E19,koudemiddelen!$A$4:$J$12,7,FALSE)),\"\"))","v":""},{"$f":"IF(E19=\"\",\"\",IF($B$12=\"nee, bij voorkeur een alternatief F-gas\",IF(VLOOKUP(E19,koudemiddelen!$A$4:$J$12,9,FALSE)=\"\",\"\",VLOOKUP(E19,koudemiddelen!$A$4:$J$12,9,FALSE)),\"\"))","v":""},{"$f":"\"\"","v":""},{"$f":"\"\"","v":""},{"$f":"\"\"","v":""},null,null,{"$f":"_xlfn._xlws.FILTER(Table1[],ISNUMBER(SEARCH(\"advies\",Table1[Voor schatting investering, onderhoud, en energiekosten: zie tabel hier onder (tabel 2)])),\"geen advies nodig/mogelijk\")","v":1},"Advies: Behoud van huidige systeem met gedeeltelijke ombouw & wisseling naar alternatief F-gas, gerecycled koudemiddel mogelijk tot 2030",0,"","niet relevant","","","","","","",""]
[2,{"$f":"IF('stringopbouw advies'!C22=0,adviesopties!B5,\"\")","v":"Advies: Gedeeltelijke ombouw. Tot 2030, alleen met gerecycled koudemiddel. Gedeeltelijke ombouw naar indirect koudedrager pompsysteem met F-gas <150, let op voor PFAS reglementen"},{"$f":"IF(B20=\"\",\"\",Vragenlijst!$D$13)","v":0},{"$f":"IF(B20=\"\",\"\",IF('stringopbouw advies'!$Q$17=1,IF('stringopbouw advies'!$Q$15=3,\"IDPS 150-500 kW\",IF('stringopbouw advies'!$Q$15=4,\"IDPS >500 kW\",IF('stringopbouw advies'!$Q$15=5,\"IDPS 150-500 kW\",IF('stringopbouw advies'!$Q$15=6,\"IDPS >500 kW\",\"\")))),IF('stringopbouw advies'!$Q$17=4,\"IDPS 150-500 kW\",IF('stringopbouw advies'!$Q$17=6,\"IDPS >500 kW\",IF('stringopbouw advies'!$Q$17=8,\"IDPS nog meer >500 kW\",\"\")))))","v":""},{"$f":"IF($B20=\"\",\"\",IF(Vragenlijst!$D$7=\"\",\"niet relevant\",Vragenlijst!$D$7))","v":"niet relevant"},{"$f":"IF(E20=\"\",\"\",IF($B$12=\"nee, bij voorkeur een alternatief F-gas\",IF(VLOOKUP(E20,koudemiddelen!$A$4:$J$12,3,FALSE)=\"\",\"\",VLOOKUP(E20,koudemiddelen!$A$4:$J$12,3,FALSE)),\"\"))","v":""},{"$f":"IF(E20=\"\",\"\",IF($B$12=\"nee, bij voorkeur een alternatief F-gas\",IF(VLOOKUP(E20,koudemiddelen!$A$4:$J$12,5,FALSE)=\"\",\"\",VLOOKUP(E20,koudemiddelen!$A$4:$J$12,5,FALSE)),\"\"))","v":""},{"$f":"IF(E20=\"\",\"\",IF($B$12=\"nee, bij voorkeur een alternatief F-gas\",IF(VLOOKUP(E20,koudemiddelen!$A$4:$J$12,7,FALSE)=\"\",\"\",VLOOKUP(E20,koudemiddelen!$A$4:$J$12,7,FALSE)),\"\"))","v":""},{"$f":"IF(E20=\"\",\"\",IF($B$12=\"nee, bij voorkeur een alternatief F-gas\",IF(VLOOKUP(E20,koudemiddelen!$A$4:$J$12,9,FALSE)=\"\",\"\",VLOOKUP(E20,koudemiddelen!$A$4:$J$12,9,FALSE)),\"\"))","v":""},{"$f":"\"\"","v":""},{"$f":"\"\"","v":""},{"$f":"\"\"","v":""},null,null,2,"Advies: Gedeeltelijke ombouw. Tot 2030, alleen met gerecycled koudemiddel. Gedeeltelijke ombouw naar indirect koudedrager pompsysteem met F-gas <150, let op voor PFAS reglementen",0,"","niet relevant","","","","","","",""]
["3a",{"$f":"IF('stringopbouw advies'!D22=0,adviesopties!B6,\"\")","v":"Advies: Gedeeltelijke ombouw met natuurlijk koudemiddelen: met CO2"},{"$f":"IF(B21=\"\",\"\",Vragenlijst!$D$13)","v":0},{"$f":"IF(B21=\"\",\"\",IF('stringopbouw advies'!$Q$17=1,IF('stringopbouw advies'!$Q$15=1,\"Dxe\",IF('stringopbouw advies'!$Q$15=2,\"DXc 25-150 kW\",IF('stringopbouw advies'!$Q$15=3,\"DPS 150-500 kW of IDPS 150-500 kW\",IF('stringopbouw advies'!$Q$15=4,\"DPS >500 kW of IDPS >500 kW\",IF('stringopbouw advies'!$Q$15=5,\"IDPS 150-500 kW\",IF('stringopbouw advies'!$Q$15=6,\"IDPS >500 kW\",\"\")))))),IF('stringopbouw advies'!$Q$17=2,\"DXc 25-150 kW\",IF('stringopbouw advies'!$Q$17=3,\"DPS 150-500 kW\",IF('stringopbouw advies'!$Q$17=4,\"IDPS 150-500 kW\",IF('stringopbouw advies'!$Q$17=5,\"DPS >500 kW\",IF('stringopbouw advies'!$Q$17=6,\"IDPS >500 kW\",IF('stringopbouw advies'!$Q$17=7,\"DPS nog meer >500kW\",IF('stringopbouw advies'!$Q$17=8,\"IDPS nog meer >500 kW\",\"\")))))))))","v":""},{"$f":"IF($B21=\"\",\"\",IF(Vragenlijst!$D$7=\"\",\"niet relevant\",Vragenlijst!$D$7))","v":"niet relevant"},{"$f":"IF(E21=\"\",\"\",IF($B$12=\"nee, bij voorkeur een alternatief F-gas\",IF(VLOOKUP(E21,koudemiddelen!$A$4:$J$12,3,FALSE)=\"\",\"\",VLOOKUP(E21,koudemiddelen!$A$4:$J$12,3,FALSE)),\"\"))","v":""},{"$f":"IF(E21=\"\",\"\",IF($B$12=\"nee, bij voorkeur een alternatief F-gas\",IF(VLOOKUP(E21,koudemiddelen!$A$4:$J$12,5,FALSE)=\"\",\"\",VLOOKUP(E21,koudemiddelen!$A$4:$J$12,5,FALSE)),\"\"))","v":""},{"$f":"IF(E21=\"\",\"\",IF($B$12=\"nee, bij voorkeur een alternatief F-gas\",IF(VLOOKUP(E21,koudemiddelen!$A$4:$J$12,7,FALSE)=\"\",\"\",VLOOKUP(E21,koudemiddelen!$A$4:$J$12,7,FALSE)),\"\"))","v":""},{"$f":"IF(E21=\"\",\"\",IF($B$12=\"nee, bij voorkeur een alternatief F-gas\",IF(VLOOKUP(E21,koudemiddelen!$A$4:$J$12,9,FALSE)=\"\",\"\",VLOOKUP(E21,koudemiddelen!$A$4:$J$12,9,FALSE)),\"\"))","v":""},{"$f":"IF(OR($B$12=\"nee, bij voorkeur een alternatief F-gas\",$B$12=\"nee, houdt liefst hetzelfde F-gas\"),\"\",IF($B21=\"\",\"\",adviesopties!D6))","v":1},{"$f":"IF(OR($B$12=\"nee, bij voorkeur een alternatief F-gas\",$B$12=\"nee, houdt liefst hetzelfde F-gas\"),\"\",IF(B21=\"\",\"\",IF('stringopbouw advies'!K6=\"10b\",adviesopties!F6,adviesopties!E6)))","v":1},{"$f":"IF(OR($B$12=\"nee, bij voorkeur een alternatief F-gas\",$B$12=\"nee, houdt liefst hetzelfde F-gas\"),\"\",IF($B21=\"\",\"\",adviesopties!G6))","v":1},null,null,"3a","Advies: Gedeeltelijke ombouw met natuurlijk koudemiddelen: met CO2",0,"","niet relevant","","","","",1,1,1]
["3b",{"$f":"IF('stringopbouw advies'!E22=0,adviesopties!B7,\"\")","v":"Advies: Gedeeltelijke ombouw met natuurlijk koudemiddelen: zonder CO2"},{"$f":"IF(B22=\"\",\"\",Vragenlijst!$D$13)","v":0},{"$f":"IF(B22=\"\",\"\",IF('stringopbouw advies'!$Q$17=1,IF('stringopbouw advies'!$Q$15=1,\"Dxe\",IF('stringopbouw advies'!$Q$15=2,\"DXc 25-150 kW\",IF('stringopbouw advies'!$Q$15=3,\"DPS 150-500 kW of IDPS 150-500 kW\",IF('stringopbouw advies'!$Q$15=4,\"DPS >500 kW of IDPS >500 kW\",IF('stringopbouw advies'!$Q$15=5,\"IDPS 150-500 kW\",IF('stringopbouw advies'!$Q$15=6,\"IDPS >500 kW\",\"\")))))),IF('stringopbouw advies'!$Q$17=2,\"DXc 25-150 kW\",IF('stringopbouw advies'!$Q$17=3,\"DPS 150-500 kW\",IF('stringopbouw advies'!$Q$17=4,\"IDPS 150-500 kW\",IF('stringopbouw advies'!$Q$17=5,\"DPS >500 kW\",IF('stringopbouw advies'!$Q$17=6,\"IDPS >500 kW\",IF('stringopbouw advies'!$Q$17=7,\"DPS nog meer >500kW\",IF('stringopbouw advies'!$Q$17=8,\"IDPS nog meer >500 kW\",\"\")))))))))","v":""},{"$f":"IF($B22=\"\",\"\",IF(Vragenlijst!$D$7=\"\",\"niet relevant\",Vragenlijst!$D$7))","v":"niet relevant"},{"$f":"IF(E22=\"\",\"\",IF($B$12=\"nee, bij voorkeur een alternatief F-gas\",IF(VLOOKUP(E22,koudemiddelen!$A$4:$J$12,3,FALSE)=\"\",\"\",VLOOKUP(E22,koudemiddelen!$A$4:$J$12,3,FALSE)),\"\"))","v":""},{"$f":"IF(E22=\"\",\"\",IF($B$12=\"nee, bij voorkeur een alternatief F-gas\",IF(VLOOKUP(E22,koudemiddelen!$A$4:$J$12,5,FALSE)=\"\",\"\",VLOOKUP(E22,koudemiddelen!$A$4:$J$12,5,FALSE)),\"\"))","v":""},{"$f":"IF(E22=\"\",\"\",IF($B$12=\"nee, bij voorkeur een alternatief F-gas\",IF(VLOOKUP(E22,koudemiddelen!$A$4:$J$12,7,FALSE)=\"\",\"\",VLOOKUP(E22,koudemiddelen!$A$4:$J$12,7,FALSE)),\"\"))","v":""},{"$f":"IF(E22=\"\",\"\",IF($B$12=\"nee, bij voorkeur een alternatief F-gas\",IF(VLOOKUP(E22,koudemiddelen!$A$4:$J$12,9,FALSE)=\"\",\"\",VLOOKUP(E22,koudemiddelen!$A$4:$J$12,9,FALSE)),\"\"))","v":""},{"$f":"IF(OR($B$12=\"nee, bij voorkeur een alternatief F-gas\",$B$12=\"nee, houdt liefst hetzelfde F-gas\"),\"\",IF($B22=\"\",\"\",adviesopties!D7))","v":1},{"$f":"\"\"","v":""},{"$f":"IF(OR($B$12=\"nee, bij voorkeur een alternatief F-gas\",$B$12=\"nee, houdt liefst hetzelfde F-gas\"),\"\",IF($B22=\"\",\"\",adviesopties!G7))","v":1},null,null,"3b","Advies: Gedeeltelijke ombouw met natuurlijk koudemiddelen: zonder CO2",0,"","niet relevant","","","","",1,"",1]
["4a1",{"$f":"IF('stringopbouw advies'!F22=0,adviesopties!B8,\"\")","v":"Advies: Volledige vervanging naar natuurlijke middelen: DXe; met CO2"},{"$f":"IF(B23=\"\",\"\",Vragenlijst!$D$13)","v":0},{"$f":"IF(B23=\"\",\"\",IF('stringopbouw advies'!$Q$17=1,IF('stringopbouw advies'!$Q$15=1,\"Dxe\",\"\")))","v":false},{"$f":"IF($B23=\"\",\"\",IF(Vragenlijst!$D$7=\"\",\"niet relevant\",Vragenlijst!$D$7))","v":"niet relevant"},{"$f":"\"\"","v":""},{"$f":"\"\"","v":""},{"$f":"\"\"","v":""},{"$f":"\"\"","v":""},{"$f":"IF(OR($B$12=\"nee, bij voorkeur een alternatief F-gas\",$B$12=\"nee, houdt liefst hetzelfde F-gas\"),\"\",IF($B23=\"\",\"\",adviesopties!D8))","v":1},{"$f":"IF(OR($B$12=\"nee, bij voorkeur een alternatief F-gas\",$B$12=\"nee, houdt liefst hetzelfde F-gas\"),\"\",IF($B23=\"\",\"\",IF('stringopbouw advies'!K8=\"10b\",adviesopties!F8,adviesopties!E8)))","v":1},{"$f":"IF(OR($B$12=\"nee, bij voorkeur een alternatief F-gas\",$B$12=\"nee, houdt liefst hetzelfde F-gas\"),\"\",IF($B23=\"\",\"\",adviesopties!G8))","v":1},null,null,"4a1","Advies: Volledige vervanging naar natuurlijke middelen: DXe; met CO2",0,false,"niet relevant","","","","",1,1,1]
["4a2",{"$f":"IF('stringopbouw advies'!G22=0,adviesopties!B9,\"\")","v":"Advies: Volledige vervanging naar natuurlijke middelen: DXe; zonder CO2"},{"$f":"IF(B24=\"\",\"\",Vragenlijst!$D$13)","v":0},{"$f":"IF(B24=\"\",\"\",IF('stringopbouw advies'!$Q$17=1,IF('stringopbouw advies'!$Q$15=1,\"DXe\",\"\")))","v":false},{"$f":"IF($B24=\"\",\"\",IF(Vragenlijst!$D$7=\"\",\"niet relevant\",Vragenlijst!$D$7))","v":"niet relevant"},{"$f":"\"\"","v":""},{"$f":"\"\"","v":""},{"$f":"\"\"","v":""},{"$f":"\"\"","v":""},{"$f":"IF(OR($B$12=\"nee, bij voorkeur een alternatief F-gas\",$B$12=\"nee, houdt liefst hetzelfde F-gas\"),\"\",IF($B24=\"\",\"\",adviesopties!D9))","v":1},{"$f":"\"\"","v":""},{"$f":"IF(OR($B$12=\"nee, bij voorkeur een alternatief F-gas\",$B$12=\"nee, houdt liefst hetzelfde F-gas\"),\"\",IF($B24=\"\",\"\",adviesopties!G9))","v":1},null,null,"4a2","Advies: Volledige vervanging naar natuurlijke middelen: DXe; zonder CO2",0,false,"niet relevant","","","","",1,"",1]
["4b1",{"$f":"IF('stringopbouw advies'!H22=0,adviesopties!B10,\"\")","v":"Advies: Volledige vervanging naar natuurlijke middelen:DXc: met CO2"},{"$f":"IF(B25=\"\",\"\",Vragenlijst!$D$13)","v":0},{"$f":"IF(B25=\"\",\"\",IF('stringopbouw advies'!$Q$17=1,IF('stringopbouw advies'!$Q$15=2,\"DXc 25-150 kW\",\"\"),IF('stringopbouw advies'!$Q$17=2,IF('stringopbouw advies'!$Q$15=1,\"DXc 25-150 kW\",\"\"))))","v":false},{"$f":"IF($B25=\"\",\"\",IF(Vragenlijst!$D$7=\"\",\"niet relevant\",Vragenlijst!$D$7))","v":"niet relevant"},{"$f":"\"\"","v":""},{"$f":"\"\"","v":""},{"$f":"\"\"","v":""},{"$f":"\"\"","v":""},{"$f":"IF(OR($B$12=\"nee, bij voorkeur een alternatief F-gas\",$B$12=\"nee, houdt liefst hetzelfde F-gas\"),\"\",IF($B25=\"\",\"\",adviesopties!D10))","v":1},{"$f":"IF(OR($B$12=\"nee, bij voorkeur een alternatief F-gas\",$B$12=\"nee, houdt liefst hetzelfde F-gas\"),\"\",IF($B25=\"\",\"\",IF('stringopbouw advies'!K10=\"10b\",adviesopties!F10,adviesopties!E10)))","v":1},{"$f":"IF(OR($B$12=\"nee, bij voorkeur een alternatief F-gas\",$B$12=\"nee, houdt liefst hetzelfde F-gas\"),\"\",IF($B25=\"\",\"\",adviesopties!G10))","v":1},null,null,"4b1","Advies: Volledige vervanging naar natuurlijke middelen:DXc: met CO2",0,false,"niet relevant","","","","",1,1,1]
["4b2",{"$f":"IF('stringopbouw advies'!I22=0,adviesopties!B11,\"\")","v":"Advies: Volledige vervanging naar natuurlijke middelen:DXc: zonder CO2"},{"$f":"IF(B26=\"\",\"\",Vragenlijst!$D$13)","v":0},{"$f":"IF(B26=\"\",\"\",IF('stringopbouw advies'!$Q$17=1,IF('stringopbouw advies'!$Q$15=2,\"DXc 25-150 kW\",\"\"),IF('stringopbouw advies'!$Q$17=2,IF('stringopbouw advies'!$Q$15=1,\"DXc 25-150 kW\",\"\"))))","v":false},{"$f":"IF($B26=\"\",\"\",IF(Vragenlijst!$D$7=\"\",\"niet relevant\",Vragenlijst!$D$7))","v":"niet relevant"},{"$f":"\"\"","v":""},{"$f":"\"\"","v":""},{"$f":"\"\"","v":""},{"$f":"\"\"","v":""},{"$f":"IF(OR($B$12=\"nee, bij voorkeur een alternatief F-gas\",$B$12=\"nee, houdt liefst hetzelfde F-gas\"),\"\",IF($B26=\"\",\"\",adviesopties!D11))","v":1},{"$f":"\"\"","v":""},{"$f":"IF(OR($B$12=\"nee, bij voorkeur een alternatief F-gas\",$B$12=\"nee, houdt liefst hetzelfde F-gas\"),\"\",IF($B26=\"\",\"\",adviesopties!G11))","v":1},null,null,"4b2","Advies: Volledige vervanging naar natuurlijke middelen:DXc: zonder CO2",0,false,"niet relevant","","","","",1,"",1]
["4c1",{"$f":"IF('stringopbouw advies'!J22=0,adviesopties!B12,\"\")","v":"Advies: Volledige vervanging naar natuurlijke middelen: DPS: met CO2"},{"$f":"IF(B27=\"\",\"\",Vragenlijst!$D$13)","v":0},{"$f":"IF(B27=\"\",\"\",IF('stringopbouw advies'!$Q$17=1,IF('stringopbouw advies'!$Q$15=3,\"DPS 150-500 kW\",IF('stringopbouw advies'!$Q$15=4,\"DPS >500 kW\",\"\")),IF('stringopbouw advies'!$Q$17=3,\"DPS 150-500 kW\",IF('stringopbouw advies'!$Q$17=5,\"DPS >500 kW\",IF('stringopbouw advies'!$Q$17=7,\"DPS nog meer >500 kW\",\"\")))))","v":""},{"$f":"IF($B27=\"\",\"\",IF(Vragenlijst!$D$7=\"\",\"niet relevant\",Vragenlijst!$D$7))","v":"niet relevant"},{"$f":"\"\"","v":""},{"$f":"\"\"","v":""},{"$f":"\"\"","v":""},{"$f":"\"\"","v":""},{"$f":"\"\"","v":""},{"$f":"IF(OR($B$12=\"nee, bij voorkeur een alternatief F-gas\",$B$12=\"nee, houdt liefst hetzelfde F-gas\"),\"\",IF($B27=\"\",\"\",IF(AND(OR('stringopbouw advies'!E8=\"4b\",'stringopbouw advies'!E8=\"4c\"),'stringopbouw advies'!H8=\"7f\"),\"\",IF('stringopbouw advies'!K12=\"10b\",adviesopties!F12,adviesopties!E12))))","v":1},{"$f":"IF(OR($B$12=\"nee, bij voorkeur een alternatief F-gas\",$B$12=\"nee, houdt liefst hetzelfde F-gas\"),\"\",IF($B27=\"\",\"\",adviesopties!G12))","v":1},null,null,"4c1","Advies: Volledige vervanging naar natuurlijke middelen: DPS: met CO2",0,"","niet relevant","","","","","",1,1]
["4c2",{"$f":"IF('stringopbouw advies'!K22=0,adviesopties!B13,\"\")","v":"Advies: Volledige vervanging naar natuurlijke middelen: DPS: zonder CO2"},{"$f":"IF(B28=\"\",\"\",Vragenlijst!$D$13)","v":0},{"$f":"IF(B28=\"\",\"\",IF('stringopbouw advies'!$Q$17=1,IF('stringopbouw advies'!$Q$15=3,\"DPS 150-500 kW\",IF('stringopbouw advies'!$Q$15=4,\"DPS >500 kW\",\"\")),IF('stringopbouw advies'!$Q$17=3,\"DPS 150-500 kW\",IF('stringopbouw advies'!$Q$17=5,\"DPS >500 kW\",IF('stringopbouw advies'!$Q$17=7,\"DPS nog meer >500 kW\",\"\")))))","v":""},{"$f":"IF($B28=\"\",\"\",IF(Vragenlijst!$D$7=\"\",\"niet relevant\",Vragenlijst!$D$7))","v":"niet relevant"},{"$f":"\"\"","v":""},{"$f":"\"\"","v":""},{"$f":"\"\"","v":""},{"$f":"\"\"","v":""},{"$f":"\"\"","v":""},{"$f":"\"\"","v":""},{"$f":"IF(OR($B$12=\"nee, bij voorkeur een alternatief F-gas\",$B$12=\"nee, houdt liefst hetzelfde F-gas\"),\"\",IF($B28=\"\",\"\",adviesopties!G13))","v":1},null,null,"4c2","Advies: Volledige vervanging naar natuurlijke middelen: DPS: zonder CO2",0,"","niet relevant","","","","","","",1]
["4d1",{"$f":"IF('stringopbouw advies'!L22=0,adviesopties!B14,\"\")","v":"Advies: Volledige vervanging naar natuurlijke middelen: IDPS: met CO2"},{"$f":"IF(B29=\"\",\"\",Vragenlijst!$D$13)","v":0},{"$f":"IF(B29=\"\",\"\",IF('stringopbouw advies'!$Q$17=1,IF('stringopbouw advies'!$Q$15=3,\"IDPS 150-500 kW\",IF('stringopbouw advies'!$Q$15=4,\"IDPS >500 kW\",IF('stringopbouw advies'!$Q$15=5,\"IDPS 150-500 kW\",IF('stringopbouw advies'!$Q$15=6,\"IDPS >500 kW\",\"\")))),IF('stringopbouw advies'!$Q$17=4,\"IDPS 150-500 kW\",IF('stringopbouw advies'!$Q$17=6,\"IDPS >500 kW\"))))","v":false},{"$f":"IF($B29=\"\",\"\",IF(Vragenlijst!$D$7=\"\",\"niet relevant\",Vragenlijst!$D$7))","v":"niet relevant"},{"$f":"\"\"","v":""},{"$f":"\"\"","v":""},{"$f":"\"\"","v":""},{"$f":"\"\"","v":""},{"$f":"IF(OR($B$12=\"nee, bij voorkeur een alternatief F-gas\",$B$12=\"nee, houdt liefst hetzelfde F-gas\"),\"\",IF($B29=\"\",\"\",IF('stringopbouw advies'!$H$4=\"7g\",\"alleen als 2x 250 kW\",adviesopties!D14)))","v":1},{"$f":"IF(OR($B$12=\"nee, bij voorkeur een alternatief F-gas\",$B$12=\"nee, houdt liefst hetzelfde F-gas\"),\"\",IF($B29=\"\",\"\",IF('stringopbouw advies'!K14=\"10b\",adviesopties!F14,adviesopties!E14)))","v":1},{"$f":"IF(OR($B$12=\"nee, bij voorkeur een alternatief F-gas\",$B$12=\"nee, houdt liefst hetzelfde F-gas\"),\"\",IF($B29=\"\",\"\",adviesopties!G14))","v":1},null,null,"4d1","Advies: Volledige vervanging naar natuurlijke middelen: IDPS: met CO2",0,false,"niet relevant","","","","",1,1,1]
["4d2",{"$f":"IF('stringopbouw advies'!M22=0,adviesopties!B15,\"\")","v":"Advies: Volledige vervanging naar natuurlijke middelen: IDPS: zonder CO2"},{"$f":"IF(B30=\"\",\"\",Vragenlijst!$D$13)","v":0},{"$f":"IF(B30=\"\",\"\",IF('stringopbouw advies'!$Q$17=1,IF('stringopbouw advies'!$Q$15=3,\"IDPS 150-500 kW\",IF('stringopbouw advies'!$Q$15=4,\"IDPS >500 kW\",IF('stringopbouw advies'!$Q$15=5,\"IDPS 150-500 kW\",IF('stringopbouw advies'!$Q$15=6,\"IDPS >500 kW\",\"\")))),IF('stringopbouw advies'!$Q$17=4,\"IDPS 150-500 kW\",IF('stringopbouw advies'!$Q$17=6,\"IDPS >500 kW\"))))","v":false},{"$f":"IF($B30=\"\",\"\",IF(Vragenlijst!$D$7=\"\",\"niet relevant\",Vragenlijst!$D$7))","v":"niet relevant"},{"$f":"\"\"","v":""},{"$f":"\"\"","v":""},{"$f":"\"\"","v":""},{"$f":"\"\"","v":""},{"$f":"IF(OR($B$12=\"nee, bij voorkeur een alternatief F-gas\",$B$12=\"nee, houdt liefst hetzelfde F-gas\"),\"\",IF($B30=\"\",\"\",IF(OR('stringopbouw advies'!$H$4=\"7f\",'stringopbouw advies'!$H$4=\"7g\"),\"alleen als 2x 250 kW\",IF(AND(OR('stringopbouw advies'!E4=\"4b\",'stringopbouw advies'!E4=\"4c\"),'stringopbouw advies'!H4=\"7f\"),\"\",adviesopties!D15))))","v":1},{"$f":"\"\"","v":""},{"$f":"IF(OR($B$12=\"nee, bij voorkeur een alternatief F-gas\",$B$12=\"nee, houdt liefst hetzelfde F-gas\"),\"\",IF($B30=\"\",\"\",adviesopties!G15))","v":1},null,null,"4d2","Advies: Volledige vervanging naar natuurlijke middelen: IDPS: zonder CO2",0,false,"niet relevant","","","","",1,"",1]
[5,{"$f":"IF('stringopbouw advies'!N22=0,adviesopties!B16,\"\")","v":"Advies: Behoud van huidige systeem, na 2030 gebruik maken van gerecycled koudemiddel, let op de opkomende PFAS wetgeving."},{"$f":"IF(B31=\"\",\"\",Vragenlijst!$D$13)","v":0},{"$f":"IF(B31=\"\",\"\",\"zelfde systeem\")","v":"zelfde systeem"},{"$f":"IF($B31=\"\",\"\",IF(Vragenlijst!$D$7=\"\",\"niet relevant\",Vragenlijst!$D$7))","v":"niet relevant"},{"$f":"IF(E31=\"\",\"\",IF($B$12=\"nee, houdt liefst hetzelfde F-gas\",\"geen alternatief F-gas gewenst\",\"\"))","v":""},{"$f":"IF(E31=\"\",\"\",IF($B$12=\"nee, houdt liefst hetzelfde F-gas\",\"\",\"\"))","v":""},{"$f":"IF(E31=\"\",\"\",IF($B$12=\"nee, houdt liefst hetzelfde F-gas\",\"\",\"\"))","v":""},{"$f":"IF(E31=\"\",\"\",IF($B$12=\"nee, houdt liefst hetzelfde F-gas\",\"\",\"\"))","v":""},{"$f":"\"\"","v":""},{"$f":"\"\"","v":""},{"$f":"\"\"","v":""},null,null,5,"Advies: Behoud van huidige systeem, na 2030 gebruik maken van gerecycled koudemiddel, let op de opkomende PFAS wetgeving.",0,"zelfde systeem","niet relevant","","","","","","",""]
[6,{"$f":"IF('stringopbouw advies'!O22=0,adviesopties!B17,\"\")","v":""},{"$f":"IF(B32=\"\",\"\",Vragenlijst!$D$13)","v":""},{"$f":"IF(B32=\"\",\"\",IF('stringopbouw advies'!$Q$17=1,IF('stringopbouw advies'!$Q$15=1,\"Dxe\",IF('stringopbouw advies'!$Q$15=2,\"DXc 25-150 kW\",IF('stringopbouw advies'!$Q$15=3,\"DPS 150-500 kW of IDPS 150-500 kW\",IF('stringopbouw advies'!$Q$15=4,\"DPS >500 kW of IDPS >500 kW\",IF('stringopbouw advies'!$Q$15=5,\"IDPS 150-500 kW\",IF('stringopbouw advies'!$Q$15=6,\"IDPS >500 kW\",\"\")))))),IF('stringopbouw advies'!$Q$17=2,IF('stringopbouw advies'!$Q$15=2,\"DXc 25-150 kW\",\"\"),IF('stringopbouw advies'!$Q$17=3,\"DPS 150-500 kW\",IF('stringopbouw advies'!$Q$17=4,\"IDPS 150-500 kW\",IF('stringopbouw advies'!$Q$17=5,\"DPS >500 kW\",IF('stringopbouw advies'!$Q$17=6,\"IDPS >500 kW\",IF('stringopbouw advies'!$Q$17=7,\"DPS nog meer >500kW\",IF('stringopbouw advies'!$Q$17=8,\"IDPS nog meer >500kW\",\"\")))))))))","v":""},{"$f":"IF($B32=\"\",\"\",IF(Vragenlijst!$D$7=\"\",\"niet relevant\",Vragenlijst!$D$7))","v":""},{"$f":"IF(E32=\"\",\"\",IF($B$12=\"nee, bij voorkeur een alternatief F-gas\",IF(VLOOKUP(E32,koudemiddelen!$A$4:$J$12,3,FALSE)=\"\",\"\",VLOOKUP(E32,koudemiddelen!$A$4:$J$12,3,FALSE)),\"\"))","v":""},{"$f":"IF(E32=\"\",\"\",IF($B$12=\"nee, bij voorkeur een alternatief F-gas\",IF(VLOOKUP(E32,koudemiddelen!$A$4:$J$12,5,FALSE)=\"\",\"\",VLOOKUP(E32,koudemiddelen!$A$4:$J$12,5,FALSE)),\"\"))","v":""},{"$f":"IF(E32=\"\",\"\",IF($B$12=\"nee, bij voorkeur een alternatief F-gas\",IF(VLOOKUP(E32,koudemiddelen!$A$4:$J$12,7,FALSE)=\"\",\"\",VLOOKUP(E32,koudemiddelen!$A$4:$J$12,7,FALSE)),\"\"))","v":""},{"$f":"IF(E32=\"\",\"\",IF($B$12=\"nee, bij voorkeur een alternatief F-gas\",IF(VLOOKUP(E32,koudemiddelen!$A$4:$J$12,9,FALSE)=\"\",\"\",VLOOKUP(E32,koudemiddelen!$A$4:$J$12,9,FALSE)),\"\"))","v":""},{"$f":"IF(OR($B$12=\"nee, bij voorkeur een alternatief F-gas\",$B$12=\"nee, houdt liefst hetzelfde F-gas\"),\"\",IF($B32=\"\",\"\",adviesopties!D17))","v":""},{"$f":"IF(OR($B$12=\"nee, bij voorkeur een alternatief F-gas\",$B$12=\"nee, houdt liefst hetzelfde F-gas\"),\"\",IF($B32=\"\",\"\",IF('stringopbouw advies'!K17=\"10b\",adviesopties!F17,adviesopties!E17)))","v":""},{"$f":"IF(OR($B$12=\"nee, bij voorkeur een alternatief F-gas\",$B$12=\"nee, houdt liefst hetzelfde F-gas\"),\"\",IF($B32=\"\",\"\",adviesopties!G17))","v":""}]
[7,{"$f":"IF('stringopbouw advies'!P22=0,adviesopties!B18,\"\")","v":""},{"$f":"IF(B33=\"\",\"\",Vragenlijst!$D$13)","v":""},{"$f":"\"\"","v":""},{"$f":"IF($B33=\"\",\"\",IF(Vragenlijst!$D$7=\"\",\"niet relevant\",Vragenlijst!$D$7))","v":""},{"$f":"\"\"","v":""},{"$f":"\"\"","v":""},{"$f":"\"\"","v":""},{"$f":"\"\"","v":""},{"$f":"\"\"","v":""},{"$f":"\"\"","v":""},{"$f":"\"\"","v":""}]
["TOELICHTING"]
["In deze cel kan specifieke informatie worden opgenomen, die nadere toelichting verstrekt over bijzondere consequenties, voorwaarden, aandachtspunten van de voorgestelde aanpassingen. Vaste punten zullen zijn:"]
[null,null,null,null,null,null,null,"disclaimer:          *","CO2 kan in sommige gevallen wel een optie zijn."]
["-         Mogelijke verandering van wetgeving in de toekomst",null,null,null,null,null,null,"**"]
["-         Altijd de resultaat verder bekijken met de specifieke behoefte van het bedrijf. Een bepaald algoritme werd gebruikt. Het is de bedoeling om het model te laten werken, maar vanuit de gekozen expertise. Er zit dus een flexibel laag omheen dat de gebruiker moet rekening meehouden."]
["-         Zorg in alle gevallen dat de juiste veiligheidsvoorzieningen worden getroffen."]
["-         Relatieve kostentabel is gemaakt met de kennis ten tijde van het ontwikkelen van het model. "]
[]
[]
["uitgangspunt",null,null,null,null,"behoud huidig systeem","gedeeltelijke ombouw",null,"4. volledige vervanging"]
[null,null,null,null,null,"1. ombouw en wissel naar alternatief F-gas","2. beperken inhoud F-gas => indirect (koude drager) pompsysteem","3. (en) wisselen naar natuurlijk (zo mogelijk)","direct expansie 0-150kW",null,"direct pomp 25-500kW",null,"indirect pomp / CO2 secundair",null,"indirect pomp / koudedrager >150kW"]
["Systeem koelcapaciteit","Referentie koelsysteem met synthetisch koudemiddel",null,"aandeel (%) in exploitatie kosten","referentie installatie (index = 100)",null,null,null,"propaan","CO2","CO2","NH3","propaan","NH3","propaan","CO2","NH3"]
["< 25 kWatt","direct expansie (enkelvoudig)","investering",0.6,100,30,"n.v.t.",30,110,135,"n.v.t.","n.v.t.","n.v.t.","n.v.t.","n.v.t.","n.v.t.","n.v.t."]
["(~  tot 100 ton product)",null,"energie",0.25,null,105,null,100,100,106]
[null,null,"onderhoud",0.15,null,110,null,108,108,125]
["25-150 kWatt","direct expansie (centraal)","investering",0.63,null,30,70,30,110,132,155,185,145,"165 ?",140,145,155]
["(~  100 tot 1500 ton product)",null,"energie",0.25,null,105,120,100,100,108,110,100,107,103,110,116,108]
[null,null,"onderhoud",0.12,null,110,105,108,108,110,110,108,109,108,120,123,122]
["150-500 kWatt","direct pomp systeem","investering",0.63,null,"n.v.t.","n.v.t.","n.v.t.","n.v.t.",125,145,160,140,155,140,145,155]
["(~  1500 tot 4000 ton product)",null,"energie",0.27,null,null,null,null,null,108,110,100,107,103,110,116,108]
[null,null,"onderhoud",0.1,null,null,null,null,null,112,108,108,109,108,120,123,122]
["> 500 kWatt","direct pomp systeem","investering",0.63,null,"n.v.t.","n.v.t.","n.v.t.","n.v.t.",125,140,155,135,150,140,145,155]
["(~ > 4000 ton product)",null,"energie",0.27,null,null,null,null,null,108,110,100,107,103,110,116,108]
[null,null,"onderhoud",0.1,null,null,null,null,null,112,108,108,109,108,120,123,122]
["> 150 kWatt","indirect pomp systeem","investering",0.63,null,30,"n.v.t.","n.v.t.","n.v.t.",125,"n.v.t.",160,140,155,140,145,155]
["(~ > 4000 ton product)",null,"energie",0.27,null,105,null,null,null,108,null,100,107,103,110,116,108]
[null,null,"onderhoud",0.1,null,110,null,null,null,112,null,108,109,108,120,123,122]
[]
["Toelichting investeringstabel"]
["algemeen",null,"een direct expansie installatie is voor de investering-, energie- en onderhoudskosten op 100 gesteld"]
[null,null,"het aandeel van kostenpost (investerings-, energie onderhoudskosten) is op basis van exploitatie toetsen; de investeringskosten gelden voor gemiddeld 15 jaar, de energie- en onderhoudskosten gelden voor de levensduur van de installatie."]
[null,null,"vb.  dus rekening houden met eindresultaat bij 12 % verschil in energie- en onderhoudskosten (over 35 jaar) versus een meerinvestering van 20 % over 15 jaar."]
["investering",null,"investeringskosten kennen een grote variatie door uitvoering, commerciële aanbiedingen (soms > 50 %) en zullen door o.a. schaalgrootte van projecten lastig in te schatten zijn. Genoemd zijn % verschillen vanuit een breed vergelijk van afgelopen jaren en logische redenatie"]
["energieverbruik",null,"energie voor compressie, condensorventilatoren, verdamperventilatoren, pompen, ontdooiing volgens vergelijkbare eindcondities (te koelen ruimte)"]
[null,null,"ruimte temperatuur"]
[null,null,"gemiddelde To"]
[null,null,"gemiddelde Tc operationele periode (agro)"]
[null,null,"Specifiek bij CO2 wordt uitgegaan van 95 % operationele tijd sub-kritisch en 5 % transkritisch"]
["onderhoudskosten",null,"verplichte onderhoudskosten (m.b.t. detectie, verplichte keuringen en bijbehorende updates)"]
[null,null,"revisie (preventief onderhoud)"]
[null,null,"oliemanagement"]
[null,null,"vroegtijdige vervanging onderdelen"]
[null,null,"koudemiddelverlies"]
[null,null,"uitgangspunt is een synthetisch dx systeem zonder verlies van f-gassen"]

{"sheet":"stringopbouw advies","index":5,"n_rows":47,"n_cols":20,"rows_kept":47,"cut":false,"hidden":true,"merged":[]}
[]
[null,null,null,null,null,null,null,null,null,null,null,null,null,"aanname: niet van IDPS naar DPS (als dit wel kan, moet deze aangepast worden)"]
[null,1,2,3,4,5,6,7,8,9,10]
[null,{"$f":"IF(Vragenlijst!D5=dropdowns!C3,\"1a\",IF(Vragenlijst!D5=dropdowns!C4,\"1b\",\"1c\"))","v":"1a"},{"$f":"IF(Vragenlijst!H7=\"\",\"2a\",IF(Vragenlijst!H7>=750,\"2b\",\"2c\"))","v":"2a"},{"$f":"IF(Vragenlijst!D9=dropdowns!C9,\"3a\",IF(Vragenlijst!D9=dropdowns!C10,\"3b\",\"3c\"))","v":"3a"},{"$f":"IF(Vragenlijst!D11=dropdowns!C12,\"4a\",IF(Vragenlijst!D11=dropdowns!C13,\"4b\",IF(Vragenlijst!D11=dropdowns!C14,\"4c\",\"4d\")))","v":"4a"},{"$f":"IF(Vragenlijst!D13=dropdowns!C16,\"5a\",IF(Vragenlijst!D13=dropdowns!C17,\"5b\",IF(Vragenlijst!D13=dropdowns!C18,\"5c\",IF(Vragenlijst!D13=dropdowns!C19,\"5d\",IF(Vragenlijst!D13=dropdowns!C20,\"5e\",IF(Vragenlijst!D13=dropdowns!C21,\"5f\",\"5g\"))))))","v":"5a"},{"$f":"IF(Vragenlijst!D15=dropdowns!C23,\"6a\",IF(Vragenlijst!D15=dropdowns!C24,\"6b\",\"6c\"))","v":"6a"},{"$f":"IF(Vragenlijst!D17=dropdowns!C27,\"7a\",IF(Vragenlijst!D17=dropdowns!C28,\"7b\",IF(Vragenlijst!D17=dropdowns!C29,\"7c\",IF(Vragenlijst!D17=dropdowns!C30,\"7d\",IF(Vragenlijst!D17=dropdowns!C31,\"7e\",IF(Vragenlijst!D17=dropdowns!C32,\"7f\",IF(Vragenlijst!D17=dropdowns!C33,\"7g\",IF(Vragenlijst!D17=dropdowns!C34,\"7h\",\"7i\"))))))))","v":"7a"},{"$f":"IF(Vragenlijst!D19=dropdowns!C36,\"8a\",IF(Vragenlijst!D19=dropdowns!C37,\"8b\",IF(Vragenlijst!D19=dropdowns!C38,\"8c\",\"8d\")))","v":"8a"},{"$f":"IF(Vragenlijst!D21=dropdowns!C40,\"9a\",IF(Vragenlijst!D21=dropdowns!C41,\"9b\",\"9c\"))","v":"9a"},{"$f":"IF(Vragenlijst!D23=dropdowns!C43,\"10a\",IF(Vragenlijst!D23=dropdowns!C44,\"10b\",\"10c\"))","v":"10a"},null,null,null,null,null,null,"wanneer vervalt advies 6?"]
[null,null,null,null,null,{"$f":"LEFT(Vragenlijst!D13,4)","v":""}]
[null,null,null,null,null,null,null,null,null,null,null,null,null,null,null,null,{"$f":"IF(Q17=OR(4,6),1,0)","v":0}]
["string=",{"$f":"B4&\"\"&C4&\"\"&D4&\"\"&E4&\"\"&F4&\"\"&G4&\"\"&H4&\"\"&I4&\"\"&J4&\"\"&K4","v":"1a2a3a4a5a6a7a8a9a10a"}]
[]
["advies→",1,2,"3a","3b","4a1","4a2","4b1","4b2","4c1","4c2","4d1","4d2",5,6,7]
["vraag ↓"]
[1,{"$f":"IF($Q11=0,1,IF($Q11=1,0,1))","v":1},{"$f":"IF($Q11=0,1,IF($Q11=1,0,1))","v":1},1,1,{"$f":"IF($Q11=0,1,IF($Q11=1,1,1))","v":1},1,1,1,1,1,1,1,{"$f":"IF($Q11=0,1,IF($Q11=1,0,1))","v":1},1,{"$f":"IF($Q11=0,1,IF($Q11=1,1,1))","v":1},{"$f":"IF(ISNUMBER(SEARCH(\"1a\",$B$7)),0,IF(ISNUMBER(SEARCH(\"1b\",$B$7)),1,2))","v":0}]
[2,{"$f":"IF($Q12=0,1,IF($Q12=1,1,0))","v":1},{"$f":"IF($Q12=0,1,IF($Q12=1,1,0))","v":1},{"$f":"IF($Q12=0,1,IF($Q12=1,1,1))","v":1},{"$f":"IF($Q12=0,1,IF($Q12=1,1,1))","v":1},1,1,1,1,1,1,1,1,1,1,1,{"$f":"IF(ISNUMBER(SEARCH(\"2a\",$B$7)),0,IF(ISNUMBER(SEARCH(\"2b\",$B$7)),1,2))","v":0}]
[3,{"$f":"IF($Q13=0,1,IF($Q13=1,0,1))","v":1},{"$f":"IF($Q13=0,1,IF($Q13=1,0,1))","v":1},1,1,1,1,1,1,1,1,1,1,{"$f":"IF($Q13=0,1,IF($Q13=1,1,1))","v":1},1,1,{"$f":"IF(ISNUMBER(SEARCH(\"3a\",$B$7)),0,IF(ISNUMBER(SEARCH(\"3b\",$B$7)),1,2))","v":0}]
[4,1,1,1,1,1,1,1,1,1,1,1,1,1,1,1,{"$f":"IF(ISNUMBER(SEARCH(\"4a\",$B$7)),0,IF(ISNUMBER(SEARCH(\"4b\",$B$7)),1,IF(ISNUMBER(SEARCH(\"4c\",$B$7)),2,3)))","v":0}]
[5,{"$f":"IF($Q15=0,1,IF(OR($Q15=3,$Q15=4),0,1))","v":1},{"$f":"IF($Q15=0,1,IF($Q15=2,1,0))","v":1},{"$f":"IF($Q15=0,1,IF(OR($Q15=1,$Q15=2),1,0))","v":1},{"$f":"IF($Q15=0,1,IF(OR($Q15=1,$Q15=2),1,0))","v":1},{"$f":"IF($Q15=0,1,1)","v":1},1,1,1,1,1,1,1,{"$f":"IF($Q15=0,1,IF(OR($Q15=1,$Q15=2),1,0))","v":1},1,1,{"$f":"IF(ISNUMBER(SEARCH(\"5a\",$B$7)),0,IF(ISNUMBER(SEARCH(\"5b\",$B$7)),1,IF(ISNUMBER(SEARCH(\"5c\",$B$7)),2,IF(ISNUMBER(SEARCH(\"5d\",$B$7)),3,IF(ISNUMBER(SEARCH(\"5e\",$B$7)),4,IF(ISNUMBER(SEARCH(\"f\",$B$7)),5,6))))))","v":0},null,"aanname:","niet van DPS naar Dxe of DXc"]
[6,{"$f":"IF($Q16=0,1,IF($Q16=1,1,IF(OR($Q15=3,$Q15=4),0,1)))","v":1},{"$f":"IF($Q16=0,1,IF($Q16=2,1,IF($Q15=0,1,IF($Q15=2,1,0))))","v":1},{"$f":"IF($Q16=0,1,IF($Q16=1,1,IF(OR($Q15=1,$Q15=2),1,0)))","v":1},{"$f":"IF($Q16=0,1,IF($Q16=1,1,IF(OR($Q15=1,$Q15=2),1,0)))","v":1},{"$f":"IF($Q16=0,1,IF($Q16=1,1,0))","v":1},{"$f":"IF($Q16=0,1,IF($Q16=1,1,IF($Q15=1,1,0)))","v":1},{"$f":"IF($Q16=0,1,IF($Q16=1,1,0))","v":1},{"$f":"IF($Q16=0,1,IF($Q16=1,1,IF($Q15=2,1,0)))","v":1},{"$f":"IF($Q16=0,1,IF($Q16=1,1,0))","v":1},{"$f":"IF($Q16=0,1,IF($Q16=1,1,IF(OR(F4=\"5d\",F4=\"5e\"),1,0)))","v":1},{"$f":"IF($Q16=0,1,IF($Q16=1,1,0))","v":1},{"$f":"IF($Q16=0,1,IF($Q16=1,1,IF(OR(F4=\"5f\",F4=\"5g\"),1,0)))","v":1},{"$f":"IF($Q16=0,1,IF($Q16=1,1,IF($Q15<3,1,0)))","v":1},1,1,{"$f":"IF(ISNUMBER(SEARCH(\"6a\",$B$7)),0,IF(ISNUMBER(SEARCH(\"6b\",$B$7)),1,2))","v":0}]
[7,{"$f":"IF($Q17=0,1,IF($Q17>1,0,IF($Q11=1,0,IF(OR($Q15=1,$Q15=2,$Q15=5,$Q15=6),1,0))))","v":1},{"$f":"IF($Q17=0,1,IF(OR($Q17=2,$Q17=3,$Q17=5,$Q17=7),0,IF($Q11=1,0,IF($Q15=2,1,0))))","v":1},{"$f":"IF($Q17=0,1,IF($Q17>1,0,IF($Q11=1,0,IF($Q15=1,1,IF($Q15=2,1,0)))))","v":1},{"$f":"IF($Q17=0,1,IF($Q17>1,0,IF($Q11=1,0,IF($Q15=1,1,IF($Q15=2,1,0)))))","v":1},{"$f":"IF($Q17=0,1,IF($Q17=1,IF($Q15=1,1,0),0))","v":1},{"$f":"IF($Q17=0,1,IF($Q17=1,IF($Q15=1,1,0),0))","v":1},{"$f":"IF($Q17=0,1,IF(Q17=1,IF($Q15=2,1,0),IF($Q17=2,IF($Q15=1,1,0),0)))","v":1},{"$f":"IF($Q17=0,1,IF(Q17=1,IF($Q15=2,1,0),IF($Q17=2,IF($Q15=1,1,0),0)))","v":1},{"$f":"IF($Q17=0,1,IF($Q17=1,IF(OR($Q15=3,$Q15=4),1,0),IF($Q17=2,0,IF($Q17=3,IF($Q15=2,1,0),IF($Q17=5,IF(OR($Q15=2,$Q15=3),1,0),IF(AND($Q17=7,$Q15=4),1,0))))))","v":1},{"$f":"IF($Q17=0,1,IF($Q17=1,IF(OR($Q15=3,$Q15=4),1,0),IF($Q17=2,0,IF($Q17=3,IF($Q15=2,1,0),IF($Q17=5,IF(OR($Q15=2,$Q15=3),1,0),IF(AND($Q17=7,$Q15=4),1,0))))))","v":1},{"$f":"IF($Q17=0,1,IF($Q17=1,IF(OR($Q15=1,$Q15=2),0,1),IF(OR($Q17=2,$Q17=3,$Q17=5,$Q17=7),0,IF($Q17=4,IF($Q15=2,1,0),IF($Q17=6,IF(OR($Q15=2,$Q15=3,$Q15=5),1,0),IF($Q15=6,1,0))))))","v":1},{"$f":"IF($Q17=0,1,IF($Q17=1,IF(OR($Q15=1,$Q15=2),0,1),IF(OR($Q17=2,$Q17=3,$Q17=5,$Q17=7),0,IF($Q17=4,IF($Q15=2,1,0),IF($Q17=6,IF(OR($Q15=2,$Q15=3,$Q15=5),1,0),IF($Q15=6,1,0))))))","v":1},{"$f":"IF($Q17=0,1,IF($Q17>1,0,IF($Q11=1,0,IF($Q15=1,1,IF($Q15=2,1,0)))))","v":1},{"$f":"IF($Q17=0,1,IF($Q17>2,1,IF($Q11=1,1,IF($Q15=1,0,IF($Q15=2,0,1)))))","v":1},1,{"$f":"IF(ISNUMBER(SEARCH(\"7a\",$B$7)),IF(ISNUMBER(SEARCH(\"LET OP\",Vragenlijst!G15)),1,0),IF(ISNUMBER(SEARCH(\"7b\",$B$7)),1,IF(ISNUMBER(SEARCH(\"7c\",$B$7)),2,IF(ISNUMBER(SEARCH(\"7d\",$B$7)),3,IF(ISNUMBER(SEARCH(\"7e\",$B$7)),4,IF(ISNUMBER(SEARCH(\"7f\",$B$7)),5,IF(ISNUMBER(SEARCH(\"7g\",$B$7)),6,IF(ISNUMBER(SEARCH(\"7h\",$B$7)),7,8))))))))","v":0}]
[8,{"$f":"IF($Q18=0,1,IF(OR($Q18=1,$Q18=3),0,IF($Q17>1,0,IF($Q11=1,0,1))))","v":1},{"$f":"IF($Q18=0,1,IF($Q18=1,0,IF(OR($Q17=2,$Q17=3,$Q17=5,$Q17=7),0,IF($Q11=1,0,1))))","v":1},{"$f":"IF($Q18=0,1,IF($Q18=1,1,0))","v":1},1,1,1,1,1,1,1,{"$f":"IF($Q18=0,1,IF($Q18=1,1,0))","v":1},{"$f":"IF($Q18=0,1,IF($Q18=1,1,0))","v":1},{"$f":"IF($Q18=0,1,IF($Q18=3,1,0))","v":1},{"$f":"IF($Q18=0,1,0)","v":1},{"$f":"IF($Q18=0,1,IF($Q18=1,1,0))","v":1},{"$f":"IF(ISNUMBER(SEARCH(\"8a\",$B$7)),0,IF(ISNUMBER(SEARCH(\"8b\",$B$7)),1,IF(ISNUMBER(SEARCH(\"8c\",$B$7)),2,3)))","v":0}]
[9,1,1,1,1,{"$f":"IF($Q19=0,1,IF($Q19=1,1,0))","v":1},{"$f":"IF($Q19=0,1,IF($Q19=1,1,0))","v":1},1,1,1,1,1,1,1,{"$f":"IF($Q19=0,1,IF($Q19=1,0,1))","v":1},1,{"$f":"IF(ISNUMBER(SEARCH(\"9a\",$B$7)),0,IF(ISNUMBER(SEARCH(\"9b\",$B$7)),1,2))","v":0},{"$f":"SUM(B19:M19)","v":12},{"$f":"SUM(N19:O19)","v":2}]
[10,1,1,{"$f":"IF($Q20=1,0,1)","v":1},1,{"$f":"IF($Q20=1,0,1)","v":1},1,{"$f":"IF($Q20=1,0,1)","v":1},1,{"$f":"IF($Q20=1,0,1)","v":1},1,{"$f":"IF($Q20=1,0,1)","v":1},1,1,1,1,{"$f":"IF(ISNUMBER(SEARCH(\"10a\",$B$7)),0,IF(ISNUMBER(SEARCH(\"10b\",$B$7)),1,2))","v":0}]
[]
[null,{"$f":"COUNTIF(B11:B20,0)","v":0},{"$f":"COUNTIF(C11:C20,0)","v":0},0,0,0,0,0,0,0,0,0,0,0,{"$f":"IF(OR(AND(F22=1,F19=0),AND(G22=1,F19=0),AND(H22=1,F19=0),AND(I22=1,F19=0),AND(J22=1,F19=0),AND(K22=1,F19=0),AND(L22=1,F19=0),AND(M22=1,F19=0)),0,1)","v":1},{"$f":"IF(OR($B22=0,$C22=0),1,P18)","v":1}]
[]
[]
[1,"a",null,null,"1a",0,null,6,"a",null,null,"6a",0]
[null,"b","tenminste 25 jaar",null,"1b",1,null,null,"b","ja",null,"6b",1]
[null,"c","minder dan 25 jaar",null,"1c",2,null,null,"c","nee",null,"6c",2]
[2,"a",null,null,"2a",0,null,7,null,"list-7","empty-7"]
[null,"b","tenminste 750 GWP",null,"2b",1,null,7,"a",null,null,"7a",0]
[null,"c","minder dan 750 GWP",null,"2c",2,null,null,"b",{"$f":"dropdowns!C28","v":"gelijk koelvermogen"},null,"7b",1]
[3,"a",null,null,"3a",0,null,null,"c",{"$f":"dropdowns!C29","v":"verhoging: naar 25-150 kW (DXc)"},null,"7c",2]
[null,"b","nee",null,"3b",1,null,null,"d",{"$f":"dropdowns!C30","v":"verhoging: naar 150-500 kW (direct pompsysteem (DPS))"},null,"7d",3]
[null,"c","ja",null,"3c",2,null,null,"e",{"$f":"dropdowns!C31","v":"verhoging: naar 150-500 kW (indirect pompsysteem (IDPS))"},null,"7e",4]
[4,"a",null,null,"4a",0,null,null,"f",{"$f":"dropdowns!C32","v":"verhoging: van minder naar meer dan 500 kW (direct pomp systeem (DPS))"},null,"7f",5]
[null,"b","inkoel, bewaarcel met minimaal vochtverlies",null,"4b",1,null,null,"g",{"$f":"dropdowns!C33","v":"verhoging: van minder naar meer dan 500 kW (indirect pompsysteem (IDPS))"},null,"7g",6]
[null,"c","bewaarcel basiscapaciteit zonder specifieke eisen qua vochtverlies onder 500 kW",null,"4c",2,null,null,"h",{"$f":"dropdowns!C34","v":"verhoging: van boven de 500 kW naar nog meer (direct pomp systeem (DPS))"},null,"7h",7]
[null,"d","bewaarcel basiscapaciteit zonder specifieke eisen qua vochtverlies over 500 kW",null,"4d",3,null,null,"i",{"$f":"dropdowns!C35","v":"verhoging: van boven de 500 kW naar nog meer (indirect pompsysteem (IDPS))"},null,"7i",8]
[5,"a",null,null,"5a",0,null,8,"a",null,null,"8a",0]
[null,"b","DXe (Directe expansie enkelvoudig); Vermogen < 25 kWatt",null,"5b",1,null,null,"b","ja",null,"8b",1]
[null,"c","DXc (Directe expansie centraal); Vermogen  25-150 kWatt",null,"5c",2,null,null,"c","nee, liever een alternatief F-gas",null,"8c",2]
[null,"d","DPS (Direct pompsysteem); Vermogen 150-500 kWatt",null,"5d",3,null,null,"d","nee, houdt liefst hetzelfde F-gas",null,"8d",3]
[null,"e","DPS (Direct pompsysteem); Vermogen >500 kWatt",null,"5e",4,null,9,"a",null,null,"9a",0]
[null,"f","IDPS (Indirect pompsysteem); Vermogen 150-500 kWatt",null,"5f",5,null,null,"b","tenminste 100%",null,"9b",1]
[null,"g","IDPS (Indirect pompsysteem); Vermogen >500 kWatt",null,"5g",6,null,null,"c","minder dan 100%",null,"9c",2]
[null,null,null,null,null,null,null,10,"a",null,null,"10a",0]
[null,null,null,null,null,null,null,null,"b","zomer",null,"10b",1]
[null,null,null,null,null,null,null,null,"c","herfst, winter, lente",null,"10c",2]

{"sheet":"adviesopties","index":6,"n_rows":18,"n_cols":7,"rows_kept":18,"cut":false,"hidden":true,"merged":[]}
["invultekst",1]
[null,null,"gassen"]
["Mogelijk resultaten",null,"F-gas","propaan","CO2","CO2","NH3"]
[1,"Advies: Behoud van huidige systeem met gedeeltelijke ombouw & wisseling naar alternatief F-gas, gerecycled koudemiddel mogelijk tot 2030",{"$f":"B1","v":1}]
[2,"Advies: Gedeeltelijke ombouw. Tot 2030, alleen met gerecycled koudemiddel. Gedeeltelijke ombouw naar indirect koudedrager pompsysteem met F-gas <150, let op voor PFAS reglementen",{"$f":"B1","v":1}]
["3a","Advies: Gedeeltelijke ombouw met natuurlijk koudemiddelen: met CO2",null,{"$f":"B1","v":1},{"$f":"B1","v":1},null,{"$f":"B1","v":1}]
["3b","Advies: Gedeeltelijke ombouw met natuurlijk koudemiddelen: zonder CO2",null,{"$f":"B1","v":1},null,null,{"$f":"B1","v":1}]
["4a1","Advies: Volledige vervanging naar natuurlijke middelen: DXe; met CO2",null,{"$f":"B1","v":1},{"$f":"B1","v":1},null,{"$f":"B1","v":1}]
["4a2","Advies: Volledige vervanging naar natuurlijke middelen: DXe; zonder CO2",null,{"$f":"B1","v":1},null,null,{"$f":"B1","v":1}]
["4b1","Advies: Volledige vervanging naar natuurlijke middelen:DXc: met CO2",null,{"$f":"B1","v":1},{"$f":"B1","v":1},null,{"$f":"B1","v":1}]
["4b2","Advies: Volledige vervanging naar natuurlijke middelen:DXc: zonder CO2",null,{"$f":"B1","v":1},null,null,{"$f":"B1","v":1}]
["4c1","Advies: Volledige vervanging naar natuurlijke middelen: DPS: met CO2",null,null,{"$f":"B1","v":1},null,{"$f":"B1","v":1}]
["4c2","Advies: Volledige vervanging naar natuurlijke middelen: DPS: zonder CO2",null,null,null,null,{"$f":"B1","v":1}]
["4d1","Advies: Volledige vervanging naar natuurlijke middelen: IDPS: met CO2",null,{"$f":"B1","v":1},{"$f":"B1","v":1},null,{"$f":"B1","v":1}]
["4d2","Advies: Volledige vervanging naar natuurlijke middelen: IDPS: zonder CO2",null,{"$f":"B1","v":1},null,null,{"$f":"B1","v":1}]
[5,"Advies: Behoud van huidige systeem, na 2030 gebruik maken van gerecycled koudemiddel, let op de opkomende PFAS wetgeving.",{"$f":"B1","v":1}]
[6,"Advies: Grotere investering is nodig om aan de wet te kunnen voldoen.",null,{"$f":"B1","v":1},{"$f":"B1","v":1},null,{"$f":"B1","v":1}]
[7,"Advies: Er is geen adviesrichting voor de gewenste synthetische oplossing. Het advies is ombouwen naar een natuurlijk koudemiddel. Kies hiervoor bij vraag 8 voor “ja”."]

{"sheet":"Sheet1","index":7,"n_rows":28,"n_cols":10,"rows_kept":28,"cut":false,"hidden":true,"merged":[]}
[{"$f":"Adviesrichting!A16","v":"0-1-2-3a-3b-4a1-4a2-4b1-4b2-4c1-4c2"},null,null,"blokken met cellen, om evt. Te kleuren"]
[]
["-1-",{"$f":"ISNUMBER(SEARCH(A3,A$1))","v":true},1,"blok 1",{"$f":"IF(AND('stringopbouw advies'!Q15=1,'stringopbouw advies'!Q17=1,'stringopbouw advies'!Q18=2,ISNUMBER(SEARCH(\"DXe\",'tussenstap advies'!C19)),ISNUMBER(SEARCH(\"DXe\",'tussenstap advies'!D19))),1,0)","v":0},"E5 - E7",17,"blok 11a",{"$f":"IF(AND('stringopbouw advies'!Q15=3,OR('stringopbouw advies'!Q17=1,'stringopbouw advies'!Q17=3,'stringopbouw advies'!Q17=5),OR('stringopbouw advies'!Q18=0,'stringopbouw advies'!Q18=1),ISNUMBER(SEARCH(\"DPS\",'tussenstap advies'!C27)),ISNUMBER(SEARCH(\"DPS\",'tussenstap advies'!D27))),1,IF(AND('stringopbouw advies'!Q15=3,OR('stringopbouw advies'!Q17=1,'stringopbouw advies'!Q17=3,'stringopbouw advies'!Q17=5),OR('stringopbouw advies'!Q18=0,'stringopbouw advies'!Q18=1),ISNUMBER(SEARCH(\"DPS\",'tussenstap advies'!C28)),ISNUMBER(SEARCH(\"DPS\",'tussenstap advies'!D28))),IF('tussenstap advies'!B27=\"\",0,1),0))","v":0},"J11 - J13"]
["-2-",{"$f":"ISNUMBER(SEARCH(A4,A$1))","v":true},2,"blok 2",{"$f":"IF(AND('stringopbouw advies'!Q15=2,'stringopbouw advies'!Q17=1,'stringopbouw advies'!Q18=2,ISNUMBER(SEARCH(\"DXc\",'tussenstap advies'!C19)),ISNUMBER(SEARCH(\"DXc\",'tussenstap advies'!D19))),1,0)","v":0},"E8 - E10",18,"blok 11b",{"$f":"IF(AND('stringopbouw advies'!Q15=3,OR('stringopbouw advies'!Q17=1,'stringopbouw advies'!Q17=3,'stringopbouw advies'!Q17=5),OR('stringopbouw advies'!Q18=0,'stringopbouw advies'!Q18=1),ISNUMBER(SEARCH(\"DPS\",'tussenstap advies'!C27)),ISNUMBER(SEARCH(\"DPS\",'tussenstap advies'!D27))),1,IF(AND('stringopbouw advies'!Q15=3,OR('stringopbouw advies'!Q17=1,'stringopbouw advies'!Q17=3,'stringopbouw advies'!Q17=5),OR('stringopbouw advies'!Q18=0,'stringopbouw advies'!Q18=1),ISNUMBER(SEARCH(\"DPS\",'tussenstap advies'!C28)),ISNUMBER(SEARCH(\"DPS\",'tussenstap advies'!D28))),1,0))","v":0},"K11-K13"]
["3a",true,3,"blok 3",{"$f":"IF(AND('stringopbouw advies'!Q15=2,OR('stringopbouw advies'!Q17=4,'stringopbouw advies'!Q17=6,'stringopbouw advies'!Q17=8),'stringopbouw advies'!Q18=2,ISNUMBER(SEARCH(\"DXc\",'tussenstap advies'!C20)),ISNUMBER(SEARCH(\"IDPS\",'tussenstap advies'!D20))),1,0)","v":0},"F8 - F10",19,"blok 12a",{"$f":"IF(AND('stringopbouw advies'!Q15=3,OR('stringopbouw advies'!Q17=1,'stringopbouw advies'!Q17=4,'stringopbouw advies'!Q17=6),OR('stringopbouw advies'!Q18=0,'stringopbouw advies'!Q18=1),ISNUMBER(SEARCH(\"DPS\",'tussenstap advies'!C29)),ISNUMBER(SEARCH(\"IDPS\",'tussenstap advies'!D29))),1,IF(AND('stringopbouw advies'!Q15=3,OR('stringopbouw advies'!Q17=1,'stringopbouw advies'!Q17=4,'stringopbouw advies'!Q17=6),OR('stringopbouw advies'!Q18=0,'stringopbouw advies'!Q18=1),ISNUMBER(SEARCH(\"DPS\",'tussenstap advies'!C30)),ISNUMBER(SEARCH(\"IDPS\",'tussenstap advies'!D30))),1,0))","v":0},"L11 - L13"]
["3b",true,4,"blok 4",{"$f":"IF(AND('stringopbouw advies'!Q15=1,'stringopbouw advies'!Q17=1,OR('stringopbouw advies'!Q18=0,'stringopbouw advies'!Q18=1),OR(AND(ISNUMBER(SEARCH(\"DXe\",'tussenstap advies'!C21)),ISNUMBER(SEARCH(\"DXe\",'tussenstap advies'!D21)),AND(ISNUMBER(SEARCH(\"DXe\",'tussenstap advies'!C22)),ISNUMBER(SEARCH(\"DXe\",'tussenstap advies'!D22)))))),1,0)","v":0},"G5 - G7",20,"blok 12b",{"$f":"IF(AND('stringopbouw advies'!Q15=3,OR('stringopbouw advies'!Q17=1,'stringopbouw advies'!Q17=4,'stringopbouw advies'!Q17=6),OR('stringopbouw advies'!Q18=0,'stringopbouw advies'!Q18=1),ISNUMBER(SEARCH(\"DPS\",'tussenstap advies'!C29)),ISNUMBER(SEARCH(\"IDPS\",'tussenstap advies'!D29))),1,IF(AND('stringopbouw advies'!Q15=3,OR('stringopbouw advies'!Q17=1,'stringopbouw advies'!Q17=4,'stringopbouw advies'!Q17=6),OR('stringopbouw advies'!Q18=0,'stringopbouw advies'!Q18=1),ISNUMBER(SEARCH(\"DPS\",'tussenstap advies'!C30)),ISNUMBER(SEARCH(\"IDPS\",'tussenstap advies'!D30))),1,0))","v":0},"M11-M13"]
["4a1",true,5,"blok 5",{"$f":"IF(AND('stringopbouw advies'!Q15=2,'stringopbouw advies'!Q17=1,OR('stringopbouw advies'!Q18=0,'stringopbouw advies'!Q18=1),OR(AND(ISNUMBER(SEARCH(\"DXc\",'tussenstap advies'!C21)),ISNUMBER(SEARCH(\"DXc\",'tussenstap advies'!D21))),AND(ISNUMBER(SEARCH(\"DXc\",'tussenstap advies'!C22)),ISNUMBER(SEARCH(\"DXc\",'tussenstap advies'!D22))))),1,0)","v":0},"G8 - G10",21,"blok 13a",{"$f":"IF(AND('stringopbouw advies'!Q15=3,OR('stringopbouw advies'!Q17=1,'stringopbouw advies'!Q17=4,'stringopbouw advies'!Q17=6),OR('stringopbouw advies'!Q18=0,'stringopbouw advies'!Q18=1),ISNUMBER(SEARCH(\"DPS\",'tussenstap advies'!C29)),ISNUMBER(SEARCH(\"IDPS\",'tussenstap advies'!D29))),1,IF(AND('stringopbouw advies'!Q15=3,OR('stringopbouw advies'!Q17=1,'stringopbouw advies'!Q17=4,'stringopbouw advies'!Q17=6),OR('stringopbouw advies'!Q18=0,'stringopbouw advies'!Q18=1),ISNUMBER(SEARCH(\"DPS\",'tussenstap advies'!C30)),ISNUMBER(SEARCH(\"IDPS\",'tussenstap advies'!D30))),1,0))","v":0},"N11 - N13"]
["4a2",true,6,"blok 6a",{"$f":"IF(AND('stringopbouw advies'!Q15=1,'stringopbouw advies'!Q17=1,OR('stringopbouw advies'!Q18=0,'stringopbouw advies'!Q18=1),OR(ISNUMBER(SEARCH(\"DXe\",'tussenstap advies'!C23)),ISNUMBER(SEARCH(\"DXe\",'tussenstap advies'!C24))),OR(ISNUMBER(SEARCH(\"DXe\",'tussenstap advies'!D23)),ISNUMBER(SEARCH(\"DXe\",'tussenstap advies'!D24)))),1,IF(AND('stringopbouw advies'!Q15=1,'stringopbouw advies'!Q17=2,OR('stringopbouw advies'!Q18=0,'stringopbouw advies'!Q18=1),ISNUMBER(SEARCH(\"DXe\",'tussenstap advies'!C26)),ISNUMBER(SEARCH(\"DXc\",'tussenstap advies'!D26))),1,0))","v":0},"H5 - H7",22,"blok 13b",{"$f":"IF('stringopbouw advies'!Q20=1,0,IF(AND('stringopbouw advies'!Q15=3,OR('stringopbouw advies'!Q17=1,'stringopbouw advies'!Q17=4,'stringopbouw advies'!Q17=6),OR('stringopbouw advies'!Q18=0,'stringopbouw advies'!Q18=1),ISNUMBER(SEARCH(\"DPS\",'tussenstap advies'!C29)),ISNUMBER(SEARCH(\"IDPS\",'tussenstap advies'!D29))),1,IF(AND('stringopbouw advies'!Q15=3,OR('stringopbouw advies'!Q17=1,'stringopbouw advies'!Q17=4,'stringopbouw advies'!Q17=6),OR('stringopbouw advies'!Q18=0,'stringopbouw advies'!Q18=1),ISNUMBER(SEARCH(\"DPS\",'tussenstap advies'!C30)),ISNUMBER(SEARCH(\"IDPS\",'tussenstap advies'!D30))),1,0)))","v":0},"O11-O13"]
["4b1",true,7,"blok 6b",{"$f":"IF('stringopbouw advies'!Q20=1,0,IF(AND('stringopbouw advies'!Q15=1,'stringopbouw advies'!Q17=1,OR('stringopbouw advies'!Q18=0,'stringopbouw advies'!Q18=1),OR(ISNUMBER(SEARCH(\"DXe\",'tussenstap advies'!C23)),ISNUMBER(SEARCH(\"DXe\",'tussenstap advies'!C24))),OR(ISNUMBER(SEARCH(\"DXe\",'tussenstap advies'!D23)),ISNUMBER(SEARCH(\"DXe\",'tussenstap advies'!D24)))),1,IF(AND('stringopbouw advies'!Q15=1,'stringopbouw advies'!Q17=2,OR('stringopbouw advies'!Q18=0,'stringopbouw advies'!Q18=1),ISNUMBER(SEARCH(\"DXe\",'tussenstap advies'!C26)),ISNUMBER(SEARCH(\"DXc\",'tussenstap advies'!D26))),1,0)))","v":0},"I5-I7",23,"blok 13c",{"$f":"IF(AND('stringopbouw advies'!Q15=3,OR('stringopbouw advies'!Q17=1,'stringopbouw advies'!Q17=4,'stringopbouw advies'!Q17=6),OR('stringopbouw advies'!Q18=0,'stringopbouw advies'!Q18=1),ISNUMBER(SEARCH(\"DPS\",'tussenstap advies'!C29)),ISNUMBER(SEARCH(\"IDPS\",'tussenstap advies'!D29))),1,IF(AND('stringopbouw advies'!Q15=3,OR('stringopbouw advies'!Q17=1,'stringopbouw advies'!Q17=4,'stringopbouw advies'!Q17=6),OR('stringopbouw advies'!Q18=0,'stringopbouw advies'!Q18=1),ISNUMBER(SEARCH(\"DPS\",'tussenstap advies'!C30)),ISNUMBER(SEARCH(\"IDPS\",'tussenstap advies'!D30))),1,0))","v":0},"P11-P13"]
["4b2",true,8,"blok 7a",{"$f":"IF(AND('stringopbouw advies'!Q15=2,'stringopbouw advies'!Q17=1,OR('stringopbouw advies'!Q18=0,'stringopbouw advies'!Q18=1),OR(ISNUMBER(SEARCH(\"DXc\",'tussenstap advies'!C25)),ISNUMBER(SEARCH(\"DXc\",'tussenstap advies'!C26))),OR(ISNUMBER(SEARCH(\"DXc\",'tussenstap advies'!D25)),ISNUMBER(SEARCH(\"DXc\",'tussenstap advies'!D26)))),1,0)","v":0},"H8 - H10",24,"blok 14a",{"$f":"IF(AND('stringopbouw advies'!Q15=4,OR('stringopbouw advies'!Q17=1,'stringopbouw advies'!Q17=3,'stringopbouw advies'!Q17=5,'stringopbouw advies'!Q17=7),OR('stringopbouw advies'!Q18=0,'stringopbouw advies'!Q18=1),ISNUMBER(SEARCH(\"DPS\",'tussenstap advies'!C27)),ISNUMBER(SEARCH(\"DPS\",'tussenstap advies'!D27))),1,IF(AND('stringopbouw advies'!Q15=4,OR('stringopbouw advies'!Q17=1,'stringopbouw advies'!Q17=3,'stringopbouw advies'!Q17=5,'stringopbouw advies'!Q17=7),OR('stringopbouw advies'!Q18=0,'stringopbouw advies'!Q18=1),ISNUMBER(SEARCH(\"DPS\",'tussenstap advies'!C28)),ISNUMBER(SEARCH(\"DPS\",'tussenstap advies'!D28))),IF('tussenstap advies'!B27=\"\",0,1),0))","v":0},"J14 - J16"]
["4c1",true,9,"blok7b",{"$f":"IF(AND('stringopbouw advies'!Q15=2,'stringopbouw advies'!Q17=1,OR('stringopbouw advies'!Q18=0,'stringopbouw advies'!Q18=1),ISNUMBER(SEARCH(\"DXc\",'tussenstap advies'!C25)),ISNUMBER(SEARCH(\"DXc\",'tussenstap advies'!D25))),1,0)","v":0},"I8-I10",25,"blok 14b",{"$f":"IF(AND('stringopbouw advies'!Q15=4,OR('stringopbouw advies'!Q17=1,'stringopbouw advies'!Q17=3,'stringopbouw advies'!Q17=5,'stringopbouw advies'!Q17=7),OR('stringopbouw advies'!Q18=0,'stringopbouw advies'!Q18=1),ISNUMBER(SEARCH(\"DPS\",'tussenstap advies'!C27)),ISNUMBER(SEARCH(\"DPS\",'tussenstap advies'!D27))),1,IF(AND('stringopbouw advies'!Q15=4,OR('stringopbouw advies'!Q17=1,'stringopbouw advies'!Q17=3,'stringopbouw advies'!Q17=5,'stringopbouw advies'!Q17=7),OR('stringopbouw advies'!Q18=0,'stringopbouw advies'!Q18=1),ISNUMBER(SEARCH(\"DPS\",'tussenstap advies'!C28)),ISNUMBER(SEARCH(\"DPS\",'tussenstap advies'!D28))),1,0))","v":0},"K14-K16"]
["4c2",true,10,"blok 8a",{"$f":"IF(AND('stringopbouw advies'!Q15=2,OR('stringopbouw advies'!Q17=3,'stringopbouw advies'!Q17=5),OR('stringopbouw advies'!Q18=0,'stringopbouw advies'!Q18=1),ISNUMBER(SEARCH(\"DXc\",'tussenstap advies'!C27)),ISNUMBER(SEARCH(\"DPS\",'tussenstap advies'!D27))),1,IF(AND('stringopbouw advies'!Q15=2,OR('stringopbouw advies'!Q17=3,'stringopbouw advies'!Q17=5),OR('stringopbouw advies'!Q18=0,'stringopbouw advies'!Q18=1),ISNUMBER(SEARCH(\"DXc\",'tussenstap advies'!C28)),ISNUMBER(SEARCH(\"DPS\",'tussenstap advies'!D28))),IF('tussenstap advies'!B27=\"\",0,1),0))","v":0},"J8 - J10",26,"blok 15a",{"$f":"IF(AND('stringopbouw advies'!Q15=4,OR('stringopbouw advies'!Q17=1,'stringopbouw advies'!Q17=4,'stringopbouw advies'!Q17=6,'stringopbouw advies'!Q17=8),OR('stringopbouw advies'!Q18=0,'stringopbouw advies'!Q18=1),ISNUMBER(SEARCH(\"DPS\",'tussenstap advies'!C29)),ISNUMBER(SEARCH(\"IDPS\",'tussenstap advies'!D29))),1,IF(AND('stringopbouw advies'!Q15=4,OR('stringopbouw advies'!Q17=1,'stringopbouw advies'!Q17=4,'stringopbouw advies'!Q17=6,'stringopbouw advies'!Q17=8),OR('stringopbouw advies'!Q18=0,'stringopbouw advies'!Q18=1),ISNUMBER(SEARCH(\"DPS\",'tussenstap advies'!C30)),ISNUMBER(SEARCH(\"IDPS\",'tussenstap advies'!D30))),1,0))","v":0},"L14 - L16"]
["4d1",false,11,"blok 8b",{"$f":"IF(AND('stringopbouw advies'!Q15=2,OR('stringopbouw advies'!Q17=3,'stringopbouw advies'!Q17=5),OR('stringopbouw advies'!Q18=0,'stringopbouw advies'!Q18=1),ISNUMBER(SEARCH(\"DXc\",'tussenstap advies'!C27)),ISNUMBER(SEARCH(\"DPS\",'tussenstap advies'!D27))),1,IF(AND('stringopbouw advies'!Q15=2,OR('stringopbouw advies'!Q17=3,'stringopbouw advies'!Q17=5),OR('stringopbouw advies'!Q18=0,'stringopbouw advies'!Q18=1),ISNUMBER(SEARCH(\"DXc\",'tussenstap advies'!C28)),ISNUMBER(SEARCH(\"DPS\",'tussenstap advies'!D28))),1,0))","v":0},"K8-K10",27,"blok 15b",{"$f":"IF(AND('stringopbouw advies'!Q15=4,OR('stringopbouw advies'!Q17=1,'stringopbouw advies'!Q17=4,'stringopbouw advies'!Q17=6,'stringopbouw advies'!Q17=8),OR('stringopbouw advies'!Q18=0,'stringopbouw advies'!Q18=1),ISNUMBER(SEARCH(\"DPS\",'tussenstap advies'!C29)),ISNUMBER(SEARCH(\"IDPS\",'tussenstap advies'!D29))),1,IF(AND('stringopbouw advies'!Q15=4,OR('stringopbouw advies'!Q17=1,'stringopbouw advies'!Q17=4,'stringopbouw advies'!Q17=6,'stringopbouw advies'!Q17=8),OR('stringopbouw advies'!Q18=0,'stringopbouw advies'!Q18=1),ISNUMBER(SEARCH(\"DPS\",'tussenstap advies'!C30)),ISNUMBER(SEARCH(\"IDPS\",'tussenstap advies'!D30))),1,0))","v":0},"M14-M16"]
["4d2",false,12,"blok 9a",{"$f":"IF(AND('stringopbouw advies'!Q15=2,OR('stringopbouw advies'!Q17=4,'stringopbouw advies'!Q17=6),OR('stringopbouw advies'!Q18=0,'stringopbouw advies'!Q18=1),ISNUMBER(SEARCH(\"DXc\",'tussenstap advies'!C29)),ISNUMBER(SEARCH(\"IDPS\",'tussenstap advies'!D29))),1,IF(AND('stringopbouw advies'!Q15=2,OR('stringopbouw advies'!Q17=4,'stringopbouw advies'!Q17=6),OR('stringopbouw advies'!Q18=0,'stringopbouw advies'!Q18=1),ISNUMBER(SEARCH(\"DXc\",'tussenstap advies'!C30)),ISNUMBER(SEARCH(\"IDPS\",'tussenstap advies'!D30))),1,0))","v":0},"L8 - L10",28,"blok 16a",{"$f":"IF(AND('stringopbouw advies'!Q15=4,OR('stringopbouw advies'!Q17=1,'stringopbouw advies'!Q17=4,'stringopbouw advies'!Q17=6,'stringopbouw advies'!Q17=8),OR('stringopbouw advies'!Q18=0,'stringopbouw advies'!Q18=1),ISNUMBER(SEARCH(\"DPS\",'tussenstap advies'!C29)),ISNUMBER(SEARCH(\"IDPS\",'tussenstap advies'!D29))),1,IF(AND('stringopbouw advies'!Q15=4,OR('stringopbouw advies'!Q17=1,'stringopbouw advies'!Q17=4,'stringopbouw advies'!Q17=6,'stringopbouw advies'!Q17=8),OR('stringopbouw advies'!Q18=0,'stringopbouw advies'!Q18=1),ISNUMBER(SEARCH(\"DPS\",'tussenstap advies'!C30)),ISNUMBER(SEARCH(\"IDPS\",'tussenstap advies'!D30))),1,0))","v":0},"N14 - N16"]
[5,false,13,"blok 9b",{"$f":"IF(AND('stringopbouw advies'!Q15=2,OR('stringopbouw advies'!Q17=4,'stringopbouw advies'!Q17=6),OR('stringopbouw advies'!Q18=0,'stringopbouw advies'!Q18=1),ISNUMBER(SEARCH(\"DXc\",'tussenstap advies'!C29)),ISNUMBER(SEARCH(\"IDPS\",'tussenstap advies'!D29))),1,IF(AND('stringopbouw advies'!Q15=2,OR('stringopbouw advies'!Q17=4,'stringopbouw advies'!Q17=6),OR('stringopbouw advies'!Q18=0,'stringopbouw advies'!Q18=1),ISNUMBER(SEARCH(\"DXc\",'tussenstap advies'!C30)),ISNUMBER(SEARCH(\"IDPS\",'tussenstap advies'!D30))),1,0))","v":0},"M8-M10",29,"blok 16b",{"$f":"IF('stringopbouw advies'!Q20=1,0,IF(AND('stringopbouw advies'!Q15=4,OR('stringopbouw advies'!Q17=1,'stringopbouw advies'!Q17=4,'stringopbouw advies'!Q17=6,'stringopbouw advies'!Q17=8),OR('stringopbouw advies'!Q18=0,'stringopbouw advies'!Q18=1),ISNUMBER(SEARCH(\"DPS\",'tussenstap advies'!C29)),ISNUMBER(SEARCH(\"IDPS\",'tussenstap advies'!D29))),1,IF(AND('stringopbouw advies'!Q15=4,OR('stringopbouw advies'!Q17=1,'stringopbouw advies'!Q17=4,'stringopbouw advies'!Q17=6,'stringopbouw advies'!Q17=8),OR('stringopbouw advies'!Q18=0,'stringopbouw advies'!Q18=1),ISNUMBER(SEARCH(\"DPS\",'tussenstap advies'!C30)),ISNUMBER(SEARCH(\"IDPS\",'tussenstap advies'!D30))),1,0)))","v":0},"O14-O16"]
[6,false,14,"blok 10a",{"$f":"IF(AND('stringopbouw advies'!Q15=2,OR('stringopbouw advies'!Q17=4,'stringopbouw advies'!Q17=6),OR('stringopbouw advies'!Q18=0,'stringopbouw advies'!Q18=1),ISNUMBER(SEARCH(\"DXc\",'tussenstap advies'!C29)),ISNUMBER(SEARCH(\"IDPS\",'tussenstap advies'!D29))),1,IF(AND('stringopbouw advies'!Q15=2,OR('stringopbouw advies'!Q17=4,'stringopbouw advies'!Q17=6),OR('stringopbouw advies'!Q18=0,'stringopbouw advies'!Q18=1),ISNUMBER(SEARCH(\"DXc\",'tussenstap advies'!C30)),ISNUMBER(SEARCH(\"IDPS\",'tussenstap advies'!D30))),1,0))","v":0},"N8 - N10",30,"blok 16c",{"$f":"IF(AND('stringopbouw advies'!Q15=4,OR('stringopbouw advies'!Q17=1,'stringopbouw advies'!Q17=4,'stringopbouw advies'!Q17=6,'stringopbouw advies'!Q17=8),OR('stringopbouw advies'!Q18=0,'stringopbouw advies'!Q18=1),ISNUMBER(SEARCH(\"DPS\",'tussenstap advies'!C29)),ISNUMBER(SEARCH(\"IDPS\",'tussenstap advies'!D29))),1,IF(AND('stringopbouw advies'!Q15=4,OR('stringopbouw advies'!Q17=1,'stringopbouw advies'!Q17=4,'stringopbouw advies'!Q17=6,'stringopbouw advies'!Q17=8),OR('stringopbouw advies'!Q18=0,'stringopbouw advies'!Q18=1),ISNUMBER(SEARCH(\"DPS\",'tussenstap advies'!C30)),ISNUMBER(SEARCH(\"IDPS\",'tussenstap advies'!D30))),1,0))","v":0},"P14-P16"]
[null,null,15,"blok 10b",{"$f":"IF('stringopbouw advies'!Q20=1,0,IF(AND('stringopbouw advies'!Q15=2,OR('stringopbouw advies'!Q17=4,'stringopbouw advies'!Q17=6),OR('stringopbouw advies'!Q18=0,'stringopbouw advies'!Q18=1),ISNUMBER(SEARCH(\"DXc\",'tussenstap advies'!C29)),ISNUMBER(SEARCH(\"IDPS\",'tussenstap advies'!D29))),1,IF(AND('stringopbouw advies'!Q15=2,OR('stringopbouw advies'!Q17=4,'stringopbouw advies'!Q17=6),OR('stringopbouw advies'!Q18=0,'stringopbouw advies'!Q18=1),ISNUMBER(SEARCH(\"DXc\",'tussenstap advies'!C30)),ISNUMBER(SEARCH(\"IDPS\",'tussenstap advies'!D30))),1,0)))","v":0},"O8-O10",31,"blok 17a",{"$f":"IF(AND(OR('stringopbouw advies'!Q15=5,'stringopbouw advies'!Q15=6),OR('stringopbouw advies'!Q17=1,'stringopbouw advies'!Q17=3,'stringopbouw advies'!Q17=5,'stringopbouw advies'!Q17=7),OR('stringopbouw advies'!Q18=0,'stringopbouw advies'!Q18=1),ISNUMBER(SEARCH(\"DPS\",'tussenstap advies'!C27)),ISNUMBER(SEARCH(\"DPS\",'tussenstap advies'!D27))),1,IF(AND(OR('stringopbouw advies'!Q15=5,'stringopbouw advies'!Q15=6),OR('stringopbouw advies'!Q17=1,'stringopbouw advies'!Q17=3,'stringopbouw advies'!Q17=5,'stringopbouw advies'!Q17=7),OR('stringopbouw advies'!Q18=0,'stringopbouw advies'!Q18=1),ISNUMBER(SEARCH(\"DPS\",'tussenstap advies'!C28)),ISNUMBER(SEARCH(\"DPS\",'tussenstap advies'!D28))),IF('tussenstap advies'!B27=\"\",0,1),0))","v":0},"J17 - J19"]
[null,null,16,"blok 10c",{"$f":"IF(AND('stringopbouw advies'!Q15=2,OR('stringopbouw advies'!Q17=4,'stringopbouw advies'!Q17=6),OR('stringopbouw advies'!Q18=0,'stringopbouw advies'!Q18=1),ISNUMBER(SEARCH(\"DXc\",'tussenstap advies'!C29)),ISNUMBER(SEARCH(\"IDPS\",'tussenstap advies'!D29))),1,IF(AND('stringopbouw advies'!Q15=2,OR('stringopbouw advies'!Q17=4,'stringopbouw advies'!Q17=6),OR('stringopbouw advies'!Q18=0,'stringopbouw advies'!Q18=1),ISNUMBER(SEARCH(\"DXc\",'tussenstap advies'!C30)),ISNUMBER(SEARCH(\"IDPS\",'tussenstap advies'!D30))),1,0))","v":0},"P8-P10",32,"blok 17b",{"$f":"IF(AND(OR('stringopbouw advies'!Q15=5,'stringopbouw advies'!Q15=6),OR('stringopbouw advies'!Q17=1,'stringopbouw advies'!Q17=3,'stringopbouw advies'!Q17=5,'stringopbouw advies'!Q17=7),OR('stringopbouw advies'!Q18=0,'stringopbouw advies'!Q18=1),ISNUMBER(SEARCH(\"DPS\",'tussenstap advies'!C27)),ISNUMBER(SEARCH(\"DPS\",'tussenstap advies'!D27))),1,IF(AND(OR('stringopbouw advies'!Q15=5,'stringopbouw advies'!Q15=6),OR('stringopbouw advies'!Q17=1,'stringopbouw advies'!Q17=3,'stringopbouw advies'!Q17=5,'stringopbouw advies'!Q17=7),OR('stringopbouw advies'!Q18=0,'stringopbouw advies'!Q18=1),ISNUMBER(SEARCH(\"DPS\",'tussenstap advies'!C28)),ISNUMBER(SEARCH(\"DPS\",'tussenstap advies'!D28))),1,0))","v":0},"K17-K19"]
[null,null,null,null,null,null,33,"blok 18a",{"$f":"IF(AND(OR('stringopbouw advies'!Q15=5,'stringopbouw advies'!Q15=6),OR('stringopbouw advies'!Q17=1,'stringopbouw advies'!Q17=4,'stringopbouw advies'!Q17=6,'stringopbouw advies'!Q17=8),OR('stringopbouw advies'!Q18=0,'stringopbouw advies'!Q18=1),ISNUMBER(SEARCH(\"IDPS\",'tussenstap advies'!C29)),ISNUMBER(SEARCH(\"IDPS\",'tussenstap advies'!D29))),1,IF(AND(OR('stringopbouw advies'!Q15=5,'stringopbouw advies'!Q15=6),OR('stringopbouw advies'!Q17=1,'stringopbouw advies'!Q17=4,'stringopbouw advies'!Q17=6,'stringopbouw advies'!Q17=8),OR('stringopbouw advies'!Q18=0,'stringopbouw advies'!Q18=1),ISNUMBER(SEARCH(\"IDPS\",'tussenstap advies'!C30)),ISNUMBER(SEARCH(\"IDPS\",'tussenstap advies'!D30))),1,0))","v":0},"L17 - L19"]
[null,null,null,null,null,null,34,"blok 18a",{"$f":"IF(AND(OR('stringopbouw advies'!Q15=5,'stringopbouw advies'!Q15=6),OR('stringopbouw advies'!Q17=1,'stringopbouw advies'!Q17=4,'stringopbouw advies'!Q17=6,'stringopbouw advies'!Q17=8),OR('stringopbouw advies'!Q18=0,'stringopbouw advies'!Q18=1),ISNUMBER(SEARCH(\"IDPS\",'tussenstap advies'!C29)),ISNUMBER(SEARCH(\"IDPS\",'tussenstap advies'!D29))),1,IF(AND(OR('stringopbouw advies'!Q15=5,'stringopbouw advies'!Q15=6),OR('stringopbouw advies'!Q17=1,'stringopbouw advies'!Q17=4,'stringopbouw advies'!Q17=6,'stringopbouw advies'!Q17=8),OR('stringopbouw advies'!Q18=0,'stringopbouw advies'!Q18=1),ISNUMBER(SEARCH(\"IDPS\",'tussenstap advies'!C30)),ISNUMBER(SEARCH(\"IDPS\",'tussenstap advies'!D30))),1,0))","v":0},"M17-M19"]
[null,null,null,null,null,null,35,"blok 19a",{"$f":"IF(AND(OR('stringopbouw advies'!Q15=5,'stringopbouw advies'!Q15=6),OR('stringopbouw advies'!Q17=1,'stringopbouw advies'!Q17=4,'stringopbouw advies'!Q17=6,'stringopbouw advies'!Q17=8),OR('stringopbouw advies'!Q18=0,'stringopbouw advies'!Q18=1),ISNUMBER(SEARCH(\"IDPS\",'tussenstap advies'!C29)),ISNUMBER(SEARCH(\"IDPS\",'tussenstap advies'!D29))),1,IF(AND(OR('stringopbouw advies'!Q15=5,'stringopbouw advies'!Q15=6),OR('stringopbouw advies'!Q17=1,'stringopbouw advies'!Q17=4,'stringopbouw advies'!Q17=6,'stringopbouw advies'!Q17=8),OR('stringopbouw advies'!Q18=0,'stringopbouw advies'!Q18=1),ISNUMBER(SEARCH(\"IDPS\",'tussenstap advies'!C30)),ISNUMBER(SEARCH(\"IDPS\",'tussenstap advies'!D30))),1,0))","v":0},"N17 - N19"]
[null,null,null,null,null,null,36,"blok 19b",{"$f":"IF('stringopbouw advies'!Q20=1,0,IF(AND(OR('stringopbouw advies'!Q15=5,'stringopbouw advies'!Q15=6),OR('stringopbouw advies'!Q17=1,'stringopbouw advies'!Q17=4,'stringopbouw advies'!Q17=6,'stringopbouw advies'!Q17=8),OR('stringopbouw advies'!Q18=0,'stringopbouw advies'!Q18=1),ISNUMBER(SEARCH(\"IDPS\",'tussenstap advies'!C29)),ISNUMBER(SEARCH(\"IDPS\",'tussenstap advies'!D29))),1,IF(AND(OR('stringopbouw advies'!Q15=5,'stringopbouw advies'!Q15=6),OR('stringopbouw advies'!Q17=1,'stringopbouw advies'!Q17=4,'stringopbouw advies'!Q17=6,'stringopbouw advies'!Q17=8),OR('stringopbouw advies'!Q18=0,'stringopbouw advies'!Q18=1),ISNUMBER(SEARCH(\"IDPS\",'tussenstap advies'!C30)),ISNUMBER(SEARCH(\"IDPS\",'tussenstap advies'!D30))),1,0)))","v":0},"O17-O19"]
[null,null,null,null,null,null,37,"blok 19c",{"$f":"IF(AND(OR('stringopbouw advies'!Q15=5,'stringopbouw advies'!Q15=6),OR('stringopbouw advies'!Q17=1,'stringopbouw advies'!Q17=4,'stringopbouw advies'!Q17=6,'stringopbouw advies'!Q17=8),OR('stringopbouw advies'!Q18=0,'stringopbouw advies'!Q18=1),ISNUMBER(SEARCH(\"IDPS\",'tussenstap advies'!C29)),ISNUMBER(SEARCH(\"IDPS\",'tussenstap advies'!D29))),1,IF(AND(OR('stringopbouw advies'!Q15=5,'stringopbouw advies'!Q15=6),OR('stringopbouw advies'!Q17=1,'stringopbouw advies'!Q17=4,'stringopbouw advies'!Q17=6,'stringopbouw advies'!Q17=8),OR('stringopbouw advies'!Q18=0,'stringopbouw advies'!Q18=1),ISNUMBER(SEARCH(\"IDPS\",'tussenstap advies'!C30)),ISNUMBER(SEARCH(\"IDPS\",'tussenstap advies'!D30))),1,0))","v":0},"P17-P19"]
[null,null,null,null,null,null,38,"blok 20",{"$f":"IF(AND(OR('stringopbouw advies'!Q15=5,'stringopbouw advies'!Q15=6),'stringopbouw advies'!Q17=1,'stringopbouw advies'!Q18=2,ISNUMBER(SEARCH(\"IDPS\",'tussenstap advies'!C19)),ISNUMBER(SEARCH(\"IDPS\",'tussenstap advies'!D19))),1,0)","v":0},"E17-E19"]
[]
[]
[]
[{"$f":"IF(B12=\"\",\"\",IF('stringopbouw advies'!$Q$17=1,6))","v":false}]

{"sheet":"koudemiddelen","index":8,"n_rows":31,"n_cols":10,"rows_kept":31,"cut":false,"hidden":true,"merged":[]}
[]
["huidig koudemiddel","GWP","alternatief 1","GWP alt 1","alternatief 2","GWP alt 2","alternatief 3","GWP alt 3","alternatief 4","GWP alt 4"]
[]
["R12","f.o.","R1234yf (XL10)","0.5","R513a (with R134a)",629,"R456a",684,"R152a",164]
["R22","f.o.","R454a",465,"R447a",582]
["R404a",3922,"R454a",465,"R447a",582,"R455A",166]
["R507",3985,"R454a",465,"R447a",582,"R455A",166]
["R134a",1430,"R1234yf (XL10)","0.5","R513a",629,"R456a",684,"R456a",684]
["R442d",1888,"R454a",465,"R447a",582,"R455A",166]
["R449a",1411,"R454a",465,"R447a",582,"R455A",166]
["R448a",1396,"R454a",465,"R447a",582,"R455A",166]
["R407f",1774,"R454a",465,"R447a",582,"R455A",166]
[]
[]
["R12",8500,"f.o"]
["R22",1810,"f.o."]
["R404a",3922]
["R507",3985]
["R134a",1430]
["R442d",1888]
["R449a",1411]
["R448a",1396]
["R407f",1774]
["R1234yf (XL10)","0.5"]
["R454a",465]
["R513a (with R134a)",629]
["R447a",582]
["R513a",629]
["R456a",684]
["R455A",166]
["R152a",164]

{"sheet":"dropdowns","index":9,"n_rows":45,"n_cols":13,"rows_kept":45,"cut":false,"hidden":true,"merged":[]}
[]
[null,null,null,null,null,null,null,null,null,null,null,null,{"$f":"IF(Vragenlijst!K27=1,\"Resultaat\",\"\")","v":""}]
[1,"a",null,null,"1a",null,null,null,null,null,{"$f":"IF(Vragenlijst!K27=0,\"U kunt naar het resultaat als alle vragen zijn ingevuld, en de vragen, die eventueel roze geworden zijn GEEN antwoord hebben (maak het antwoord dus leeg als het dat niet is)\",\"\")","v":"U kunt naar het resultaat als alle vragen zijn ingevuld, en de vragen, die eventueel roze geworden zijn GEEN antwoord hebben (maak het antwoord dus leeg als het dat niet is)"}]
[null,"b","tenminste 25 jaar",null,"1b",null,"R12",8500,"f.o"]
[null,"c","minder dan 25 jaar",null,"1c",null,"R1234yf (XL10)","0.5","f.o."]
[2,"a",null,null,"2a",null,"R134a",1430]
[null,"b","tenminste 750 GWP",null,"2b",null,"R22",1810]
[null,"c","minder dan 750 GWP",null,"2c",null,"R404a",3922]
[3,"a",null,null,"3a",null,"R407f",1774]
[null,"b","nee",null,"3b",null,"R442d",1888]
[null,"c","ja",null,"3c",null,"R448a",1396]
[4,"a",null,null,"4a",null,"R449a",1411]
[null,"b","inkoel, bewaarcel met minimaal vochtverlies",null,"4b",null,"R454a",465]
[null,"c","bewaarcel/distributie basiscapaciteit zonder specifieke eisen qua vochtverlies onder 500 kW",null,"4c",null,"R507",3985]
[null,"d","bewaarcel/distributie basiscapaciteit zonder specifieke eisen qua vochtverlies over 500 kW",null,"4d",null,"R513a (with R134a)",629]
[5,"a",null,null,"5a",null,"R447a",582]
[null,"b","DXe (Directe Expansie enkelvoudig); Koelvermogen < 25 kW",null,"5b",null,"R513a",629]
[null,"c","DXc (Directe expansie centraal); Koelvermogen  25-150 kW",null,"5c",null,"R456a",684]
[null,"d","DPS (Direct pompsysteem); Koelvermogen 150-500 kW",null,"5d",null,"R455A",166]
[null,"e","DPS (Direct pompsysteem); Koelvermogen >500 kW",null,"5e",null,"R152a",164]
[null,"f","IDPS (Indirect pompsysteem); Koelvermogen 150-500 kW",null,"5f"]
[null,"g","IDPS (Indirect pompsysteem); Koelvermogen >500 kW",null,"5g"]
[6,"a",null,null,"6a"]
[null,"b","ja",null,"6b"]
[null,"c","nee",null,"6c"]
[7,null,"list-7","empty-7"]
[7,"a",null,null,"7a"]
[null,"b","gelijk koelvermogen",null,"7b"]
[null,"c","verhoging: naar 25-150 kW (DXc)",null,"7c"]
[null,"d","verhoging: naar 150-500 kW (direct pompsysteem (DPS))",null,"7d"]
[null,"e","verhoging: naar 150-500 kW (indirect pompsysteem (IDPS))",null,"7e"]
[null,"f","verhoging: van minder naar meer dan 500 kW (direct pomp systeem (DPS))",null,"7f"]
[null,"g","verhoging: van minder naar meer dan 500 kW (indirect pompsysteem (IDPS))",null,"7g"]
[null,"h","verhoging: van boven de 500 kW naar nog meer (direct pomp systeem (DPS))",null,"7h"]
[null,"i","verhoging: van boven de 500 kW naar nog meer (indirect pompsysteem (IDPS))",null,"7i"]
[8,"a",null,null,"8a"]
[null,"b","ja",null,"8b"]
[null,"c","nee, bij voorkeur een alternatief F-gas",null,"8c"]
[null,"d","nee, houdt bij voorkeur hetzelfde F-gas",null,"8d"]
[9,"a",null,null,"9a"]
[null,"b","tenminste 100% van de initiële investering",null,"9b"]
[null,"c","minder dan 100% van de initiële investering",null,"9c"]
[10,"a",null,null,"10a"]
[null,"b","zomer",null,"10b"]
[null,"c","herfst, winter, lente",null,"10c"]

{"sheet":"dynamische dropdowns","index":10,"n_rows":23,"n_cols":5,"rows_kept":23,"cut":false,"hidden":true,"merged":[]}
[null,"beginsysteem"]
[null,"5a",null,"5b","5c"]
["DXe (Directe Expansie enkelvoudig); Koelvermogen < 25 kW","5b"]
["DXc (Directe expansie centraal); Koelvermogen  25-150 kW","5c",null,"gelijk koelvermogen","gelijk koelvermogen"]
["DPS (Direct pompsysteem); Koelvermogen 150-500 kW","5d",null,"verhoging: naar 25-150 kW (DXc)","verhoging: naar 150-500 kW (direct pompsysteem (DPS))"]
["DPS (Direct pompsysteem); Koelvermogen >500 kW","5e",null,null,"verhoging: naar 150-500 kW (indirect pompsysteem (IDPS))"]
["IDPS (Indirect pompsysteem); Koelvermogen 150-500 kW","5f",null,null,"verhoging: van minder naar meer dan 500 kW (direct pomp systeem (DPS))"]
["IDPS (Indirect pompsysteem); Koelvermogen >500 kW","5g",null,null,"verhoging: van minder naar meer dan 500 kW (indirect pompsysteem (IDPS))"]
[]
[]
[null,"7a"]
["gelijk koelvermogen","7b",null,"5d","5e"]
["verhoging: naar 25-150 kW (DXc)","7c"]
["verhoging: naar 150-500 kW (direct pompsysteem (DPS))","7d",null,"gelijk koelvermogen","gelijk koelvermogen"]
["verhoging: naar 150-500 kW (indirect pompsysteem (IDPS))","7e",null,"verhoging: van minder naar meer dan 500 kW (direct pomp systeem (DPS))","verhoging: van boven de 500 kW naar nog meer (direct pomp systeem (DPS))"]
["verhoging: van minder naar meer dan 500 kW (direct pomp systeem (DPS))","7f",null,"verhoging: van minder naar meer dan 500 kW (indirect pompsysteem (IDPS))"]
["verhoging: van minder naar meer dan 500 kW (indirect pompsysteem (IDPS))","7g"]
["verhoging: van boven de 500 kW naar nog meer (direct pomp systeem (DPS))","7h"]
["verhoging: van boven de 500 kW naar nog meer (indirect pompsysteem (IDPS))","7i",null,"5f","5g"]
[]
[{"$f":"'stringopbouw advies'!F4","v":"5a"},null,null,"gelijk koelvermogen","gelijk koelvermogen"]
["_",null,null,"verhoging: van minder naar meer dan 500 kW (indirect pompsysteem (IDPS))","verhoging: van boven de 500 kW naar nog meer (indirect pompsysteem (IDPS))"]
[{"$f":"A22&\"\"&A21","v":"_5a"}]